{"text_format":"1","workbook":"xlsx","n_sheets":3,"sheets":["Отчет","Настройка","Выгрузка в ГНИ 4"],"not_rendered":{"charts":0,"images":0,"macros":1,"external_links":0,"defined_names":264,"comments":0,"pivot_tables":0},"unopened":[],"bounds":{"document_bytes":16777216,"sheet_cells":100000,"rows_first":2000,"rows_last":500,"rows_between":2000,"halvings":0,"cell_chars":16384,"cell_head_chars":4096},"cells_cut":0,"cells_raw":0,"read":"whole","date_system":"1900"}

{"sheet":"Отчет","index":0,"n_rows":180,"n_cols":18,"rows_kept":180,"cut":false,"hidden":false,"merged":[[44,0,44,7],[121,0,121,7]]}
["ОТЧЕТ  О ФИНАНСОВЫХ РЕЗУЛЬТАТАХ ДЕЯТЕЛЬНОСТИ УЧРЕЖДЕНИЯ",null,null,null,null,null,null,null,null,null,null,null,null,"КОДЫ"]
[null,null,null,null,null,null,null,null,null,null,null,null,"       Форма по ОКУД","0503721"]
[null,null,null,"на 01 января 2016 г.",null,null,null,null,null,null,null,null,"                       Дата","01.01.2016"]
["Учреждение",null,null,"УФК по Саратовской области (Фин. управление администрации Ртищевского муницип. района МОУ \"Лицей №3 им. П.А. Столыпина г.Ртищево Саратовской области\")",null,null,null,null,null,null,null,null,"по ОКПО  ","36172359"]
["Обособленное подразделение"]
["Учредитель",null,null,"",null,null,null,null,null,null,null,null,"по ОКТМО  ","63440000000"]
["Наименование органа, осуществля-    ",null,null,null,null,null,null,null,null,null,null,null,"по ОКПО  ",""]
["ющего полномочия учредителя",null,null,null,null,null,null,null,null,null,null,null,"ИНН   ",""]
["Периодичность:  годовая",null,null,null,null,null,null,null,null,null,null,null,"Глава по БК   ",""]
["Единица измерения: руб",null,null,null,null,null,null,null,null,null,null,null,"                по ОКЕИ    ",383]
[]
[null,null,null,null,null,null,null,null,"Код","Код анали-тики","Деятельность","Деятельность по","Приносящая"]
["Наименование показателя",null,null,null,null,null,null,null,"стро-",null,"с целевыми","государственному","доход","Итого"]
[null,null,null,null,null,null,null,null,"ки",null,"средствами","заданию","деятельность"]
[1,null,null,null,null,null,null,null,2,3,4,5,"6","7"]
["Доходы (стр.030 + стр.040 + стр.050 + стр.060 + стр.090 + стр.100 + стр.110)",null,null,null,null,null,null,null,"010","100",{"$f":"K17+K18+K19+K20+K25+K33+K39","v":578747.06000000006},{"$f":"L17+L18+L19+L20+L25+L33+L39","v":23534272.699999999},{"$f":"M17+M18+M19+M20+M25+M33+M39","v":1531689.81},{"$f":"K16+L16+M16","v":25644709.57}]
["   Доходы от собственности",null,null,null,null,null,null,null,"030","120",null,0,0,{"$f":"K17+L17+M17","v":0}]
["   Доходы от оказания платных услуг (работ)",null,null,null,null,null,null,null,"040","130",null,null,1531689.81,{"$f":"K18+L18+M18","v":1531689.81}]
["   Доходы от штрафов, пени, иных сумм принудительного изъятия",null,null,null,null,null,null,null,"050","140",null,null,0,{"$f":"K19+L19+M19","v":0}]
["   Безвозмездные  поступления от бюджетов",null,null,null,null,null,null,null,"060","150",{"$f":"K23+K24","v":0},{"$f":"L23+L24","v":0},{"$f":"M23+M24","v":0},{"$f":"K20+L20+M20","v":0}]
["                           в том числе:"]
["                 поступления от наднациональных организаций и правительств "]
["                  иностранных государств",null,null,null,null,null,null,null,"062","152",null,0,null,{"$f":"K23+L23+M23","v":0}]
["                  поступления от международных финансовых организаций",null,null,null,null,null,null,null,"063","153",null,0,null,{"$f":"K24+L24+M24","v":0}]
["   Доходы от операций с активами",null,null,null,null,null,null,null,"090","170",{"$f":"K27+K28+K32","v":0},{"$f":"L27+L28+L32","v":-328565.40000000002},{"$f":"M27+M28+M32","v":0},{"$f":"K25+L25+M25","v":-328565.40000000002}]
["                           в том числе:"]
["                 доходы от переоценки активов",null,null,null,null,null,null,null,"091","171",0,0,0,{"$f":"K27+L27+M27","v":0}]
["                 доходы от реализации активов",null,null,null,null,null,null,null,"092","172",{"$f":"K30+K31","v":0},{"$f":"L30+L31","v":-328565.40000000002},{"$f":"M30+M31","v":0},{"$f":"K28+L28+M28","v":-328565.40000000002}]
["                           из них:"]
["                           доходы от реализации нефинансовых активов",null,null,null,null,null,null,null,"093","172",0,-328565.40000000002,0,{"$f":"K30+L30+M30","v":-328565.40000000002}]
["                           доходы от реализации финансовых активов",null,null,null,null,null,null,null,"096","172",null,0,null,{"$f":"K31+L31+M31","v":0}]
["                 чрезвычайные доходы от операций с активами",null,null,null,null,null,null,null,"099","173",0,0,0,{"$f":"K32+L32+M32","v":0}]
["   Прочие доходы",null,null,null,null,null,null,null,"100","180",{"$f":"K35+K36+K37+K38","v":578747.06000000006},{"$f":"L35+L36+L37+L38","v":23862838.100000001},{"$f":"M35+M36+M37+M38","v":0},{"$f":"K33+L33+M33","v":24441585.16}]
["                           в том числе:"]
["                 субсидии",null,null,null,null,null,null,null,"101","180",578747.06000000006,23862838.100000001,null,{"$f":"K35+L35+M35","v":24441585.16}]
["                 субсидии на осуществление капитальных вложений",null,null,null,null,null,null,null,"102","180",0,null,null,{"$f":"K36+L36+M36","v":0}]
["                 иные трансферты ",null,null,null,null,null,null,null,"103","180",0,null,0,{"$f":"K37+L37+M37","v":0}]
["                 иные прочие доходы ",null,null,null,null,null,null,null,"104","180",null,0,0,{"$f":"K38+L38+M38","v":0}]
["   Доходы будущих периодов",null,null,null,null,null,null,null,"110","100",0,0,0,{"$f":"K39+L39+M39","v":0}]
[null,null,null,null,null,null,null,null,null,null,null,null,null,"Форма 0503721 с.2"]
[null,null,null,null,null,null,null,null,"Код","Код анали-тики","Деятельность","Деятельность по","Приносящая"]
["Наименование показателя",null,null,null,null,null,null,null,"стро-",null,"с целевыми","государственному","доход","Итого"]
[null,null,null,null,null,null,null,null,"ки",null,"средствами","заданию","деятельность"]
[1,null,null,null,null,null,null,null,2,3,4,5,"6","7"]
["Расходы  (стр.160 + стр.170 + стр. 190 + стр.210 + стр. 230 + стр. 240 + стр. 250 + стр. 260 + стр. 290)",null,null,null,null,null,null,null,"150","200",{"$f":"K46+K51+K59+K63+K69+K74+K79+K85+K90","v":580265.13},{"$f":"L46+L51+L59+L63+L69+L74+L79+L85+L90","v":26980709.27},{"$f":"M46+M51+M59+M63+M69+M74+M79+M85+M90","v":1524742.76},{"$f":"K45+L45+M45","v":29085717.16}]
["Оплата труда и начисления на выплаты по оплате труда",null,null,null,null,null,null,null,"160","210",{"$f":"K48+K49+K50","v":0},{"$f":"L48+L49+L50","v":19922264.239999998},{"$f":"M48+M49+M50","v":16537.32},{"$f":"K46+L46+M46","v":19938801.559999999}]
["                           в том числе:"]
["                  заработная плата",null,null,null,null,null,null,null,"161","211",0,15104883.6,12990.83,{"$f":"K48+L48+M48","v":15117874.43}]
["                  прочие выплаты ",null,null,null,null,null,null,null,"162","212",0,2475.81,0,{"$f":"K49+L49+M49","v":2475.81}]
["                  начисления на выплаты по оплате труда",null,null,null,null,null,null,null,"163","213",0,4814904.83,3546.49,{"$f":"K50+L50+M50","v":4818451.32}]
["   Приобретение работ, услуг",null,null,null,null,null,null,null,"170","220",{"$f":"K53+K54+K55+K56+K57+K58","v":99897},{"$f":"L53+L54+L55+L56+L57+L58","v":3534200.33},{"$f":"M53+M54+M55+M56+M57+M58","v":38438.480000000003},{"$f":"K51+L51+M51","v":3672535.81}]
["                           в том числе:"]
["                  услуги связи",null,null,null,null,null,null,null,"171","221",0,34156.69,0,{"$f":"K53+L53+M53","v":34156.69}]
["                  транспортные услуги",null,null,null,null,null,null,null,"172","222",0,4463.1000000000004,0,4463.1000000000004]
["                  коммунальные услуги",null,null,null,null,null,null,null,"173","223",0,2965698.59,0,2965698.59]
["                  арендная плата за пользование имуществом",null,null,null,null,null,null,null,"174","224",0,0,0,0]
["                  работы, услуги по содержанию имущества",null,null,null,null,null,null,null,"175","225",99897,114832.52,0,214729.52]
["                  прочие работы, услуги",null,null,null,null,null,null,null,"176","226",0,415049.43,38438.480000000003,453487.91]
["   Обслуживание долговых обязательств",null,null,null,null,null,null,null,"190","230",{"$f":"K61+K62","v":0},{"$f":"L61+L62","v":0},{"$f":"M61+M62","v":0},0]
["                           в том числе:"]
["                  обслуживание долговых обязательств перед резидентами",null,null,null,null,null,null,null,"191","231",null,0,0,{"$f":"K61+L61+M61","v":0}]
["                  обслуживание долговых обязательств перед нерезидентами",null,null,null,null,null,null,null,"192","232",null,0,0,{"$f":"K62+L62+M62","v":0}]
["   Безвозмездные перечисления организациям",null,null,null,null,null,null,null,"210","240",{"$f":"K66+K68","v":0},{"$f":"L66+L68","v":0},{"$f":"M66+M68","v":0},{"$f":"K63+L63+M63","v":0}]
["                           в том числе:"]
["                   безвозмездные перечисления государственным"]
["                   и муниципальным организациям",null,null,null,null,null,null,null,"211","241",0,0,0,{"$f":"K66+L66+M66","v":0}]
["                   безвозмездные перечисления организациям, за "]
["                   исключением государственных и муниципальных организаций",null,null,null,null,null,null,null,"212","242",0,0,0,{"$f":"K68+L68+M68","v":0}]
["   Безвозмездные перечисления бюджетам",null,null,null,null,null,null,null,"230","250",{"$f":"K72+K73","v":0},{"$f":"L72+L73","v":0},{"$f":"M72+M73","v":0},{"$f":"K69+L69+M69","v":0}]
["                           в том числе:"]
["                   перечисления наднациональным организациям и правительствам "]
["                   иностранных государств",null,null,null,null,null,null,null,"232","252",0,0,0,{"$f":"K72+L72+M72","v":0}]
["                   перечисления международным организациям",null,null,null,null,null,null,null,"233","253",0,0,0,{"$f":"K73+L73+M73","v":0}]
["   Социальное обеспечение",null,null,null,null,null,null,null,"240","260",{"$f":"K76+K78","v":0},{"$f":"L76+L78","v":0},{"$f":"M76+M78","v":0},{"$f":"K74+L74+M74","v":0}]
["                           в том числе:"]
["                 пособия по социальной помощи населению",null,null,null,null,null,null,null,"242","262",0,0,0,{"$f":"K76+L76+M76","v":0}]
["                 пенсии, пособия, выплачиваемые организациями сектора"]
["                  государственного управления",null,null,null,null,null,null,null,"243","263",0,0,0,{"$f":"K78+L78+M78","v":0}]
["   Прочие расходы",null,null,null,null,null,null,null,"250","290",0,881105.75,0,{"$f":"K79+L79+M79","v":881105.75}]
[null,null,null,null,null,null,null,null,null,null,null,null,null,"Форма 0503721 с.3"]
[null,null,null,null,null,null,null,null,"Код","Код анали-тики","Деятельность","Деятельность по","Приносящая"]
[" Наименование показателя",null,null,null,null,null,null,null,"стро-",null,"с целевыми","государственному","доход","Итого"]
[null,null,null,null,null,null,null,null,"ки",null,"средствами","заданию","деятельность"]
[1,null,null,null,null,null,null,null,2,3,4,5,"6","7"]
["   Расходы по операциям с активами ",null,null,null,null,null,null,null,"260","270",{"$f":"K87+K88+K89","v":480368.13},{"$f":"L87+L88+L89","v":2643138.9500000002},{"$f":"M87+M88+M89","v":1469766.96},{"$f":"K85+L85+M85","v":4593274.04}]
["                           в том числе:"]
["                  амортизация основных средств и нематериальных активов",null,null,null,null,null,null,null,"261","271",0,2643138.9500000002,13300,{"$f":"K87+L87+M87","v":2656438.9500000002}]
["                  расходование материальных запасов",null,null,null,null,null,null,null,"264","272",480368.13,0,1456466.96,1936835.09]
["                  чрезвычайные расходы по операциям с активами",null,null,null,null,null,null,null,"269","273",0,0,0,0]
["   Расходы будущих периодов",null,null,null,null,null,null,null,"290",null,0,0,0,0]
["Чистый операционный результат (стр.301 - стр.302 + стр.303); (стр.310 + стр.380)",null,null,null,null,null,null,null,"300",null,{"$f":"K92-K93+K94","v":-1518.07},{"$f":"L92-L93+L94","v":-3446436.57},{"$f":"M92-M93+M94","v":-1225.95},-3449180.59,null,{"$f":"K91-P92","v":0},{"$f":"L91-Q92","v":0},{"$f":"M91-R92","v":0}]
["   Операционный результат до налогообложения  (стр.010 - стр.150)",null,null,null,null,null,null,null,"301",null,{"$f":"K16-K45","v":-1518.07},{"$f":"L16-L45","v":-3446436.57},{"$f":"M16-M45","v":6947.05},-3441007.59,null,{"$f":"K95+K122-K152","v":-1518.07},{"$f":"L95+L122-L152","v":-3446436.57},{"$f":"M95+M122-M152","v":-1225.95}]
["   Налог на прибыль ",null,null,null,null,null,null,null,"302",null,null,0,8173,8173]
["   Резервы предстоящих расходов",null,null,null,null,null,null,null,"303",null,0,0,0,0]
["Операции с нефинансовыми активами (стр.320 + стр.330 + стр.350 + стр.360 + стр.370)",null,null,null,null,null,null,null,"310",null,{"$f":"K96+K100+K104+K108+K112","v":3913},{"$f":"L96+L100+L104+L108+L112","v":-2284538.9500000002},{"$f":"M96+M100+M104+M108+M112","v":7177.25},-2273448.7000000002]
["   Чистое поступление основных средств ",null,null,null,null,null,null,null,"320",null,{"$f":"K98-K99","v":0},{"$f":"L98-L99","v":-2284538.9500000002},{"$f":"M98-M99","v":0},-2284538.9500000002]
["                           в том числе:"]
["                   увеличение стоимости основных средств",null,null,null,null,null,null,null,"321","310",0,364550,31500,{"$f":"K98+L98+M98","v":396050}]
["                   уменьшение стоимости основных средств",null,null,null,null,null,null,null,"322","410",0,2649088.9500000002,31500,{"$f":"K99+L99+M99","v":2680588.9500000002}]
["   Чистое поступление нематериальных активов",null,null,null,null,null,null,null,"330",null,{"$f":"K102-K103","v":0},{"$f":"L102-L103","v":0},{"$f":"M102-M103","v":0},{"$f":"K100+L100+M100","v":0}]
["                           в том числе:"]
["                   увеличение стоимости нематериальных активов",null,null,null,null,null,null,null,"331","320",0,0,0,{"$f":"K102+L102+M102","v":0}]
["                   уменьшение стоимости нематериальных активов",null,null,null,null,null,null,null,"332","420",0,0,0,{"$f":"K103+L103+M103","v":0}]
["   Чистое поступление непроизведенных активов",null,null,null,null,null,null,null,"350",null,{"$f":"K106-K107","v":0},{"$f":"L106-L107","v":0},{"$f":"M106-M107","v":0},{"$f":"K104+L104+M104","v":0}]
["                           в том числе:"]
["                   увеличение стоимости непроизведенных активов",null,null,null,null,null,null,null,"351","330",0,0,0,{"$f":"K106+L106+M106","v":0}]
["                   уменьшение стоимости непроизведенных активов",null,null,null,null,null,null,null,"352","430",0,0,0,{"$f":"K107+L107+M107","v":0}]
["   Чистое поступление материальных запасов",null,null,null,null,null,null,null,"360",null,{"$f":"K110-K111","v":3913},{"$f":"L110-L111","v":0},{"$f":"M110-M111","v":7177.25},{"$f":"K108+L108+M108","v":11090.25}]
["                           в том числе:"]
["                   увеличение стоимости материальных запасов",null,null,null,null,null,null,null,"361","340",484281.15,0,1463759.28,{"$f":"K110+L110+M110","v":1948040.43}]
["                   уменьшение стоимости материальных запасов",null,null,null,null,null,null,null,"362","440",480368.15,0,1456582.03,{"$f":"K111+L111+M111","v":1936950.18}]
["   Чистое изменение затрат на изготовление готовой продукции (работ, услуг)",null,null,null,null,null,null,null,"370",null,{"$f":"K114-K115","v":0},{"$f":"L114-L115","v":0},{"$f":"M114-M115","v":0},{"$f":"K112+L112+M112","v":0}]
["                           в том числе:"]
["                   увеличение затрат",null,null,null,null,null,null,null,"371","х",0,0,1540608.48,{"$f":"K114+L114+M114","v":1540608.48}]
["                   уменьшение затрат",null,null,null,null,null,null,null,"372","х",0,0,1540608.48,{"$f":"K115+L115+M115","v":1540608.48}]
[null,null,null,null,null,null,null,null,null,null,null,null,null,"Форма 0503721 с.4"]
[null,null,null,null,null,null,null,null,"Код","Код анали-тики","Деятельность","Деятельность по","Приносящая"]
["Наименование показателя",null,null,null,null,null,null,null,"стро-",null,"с целевыми","государственному","доход","Итого"]
[null,null,null,null,null,null,null,null,"ки",null,"средствами","заданию","деятельность"]
[1,null,null,null,null,null,null,null,2,3,4,5,"6","7"]
["    Операции с финансовыми активами и обязательствами (стр.390 - стр.510)",null,null,null,null,null,null,null,"380",null,{"$f":"K122-K152","v":-5431.07},{"$f":"L122-L152","v":-1161897.6200000001},{"$f":"M122-M152","v":-8403.2000000000007},{"$f":"K121+L121+M121","v":-1175731.8899999999}]
["Операции с финансовыми активами (стр.410 + стр.420 + стр.440 +стр.460 + стр.470 + стр.480)",null,null,null,null,null,null,null,"390",null,{"$f":"K123+K127+K131+K135+K139+K143","v":0},{"$f":"L123+L127+L131+L135+L139+L143","v":-314472.73},{"$f":"M123+M127+M131+M135+M139+M143","v":77799.16},{"$f":"K122+L122+M122","v":-236673.57}]
["   Чистое поступление средств учреждений",null,null,null,null,null,null,null,"410",null,{"$f":"K125-K126","v":0},{"$f":"L125-L126","v":0},{"$f":"M125-M126","v":68001.350000000006},{"$f":"K123+L123+M123","v":68001.350000000006}]
["                           в том числе:"]
["                   поступление средств",null,null,null,null,null,null,null,"411","510",578747.06000000006,23989642.710000001,1578362.2,{"$f":"K125+L125+M125","v":26146751.969999999}]
["                   выбытие средств",null,null,null,null,null,null,null,"412","610",578747.06000000006,23989642.710000001,1510360.85,{"$f":"K126+L126+M126","v":26078750.620000001}]
["Чистое поступление ценных бумаг, кроме акций ",null,null,null,null,null,null,null,"420",null,{"$f":"K129-K130","v":0},{"$f":"L129-L130","v":0},{"$f":"M129-M130","v":0},{"$f":"K127+L127+M127","v":0}]
["                           в том числе:"]
["увеличение стоимости ценных бумаг, кроме акций ",null,null,null,null,null,null,null,"421","520",0,0,0,{"$f":"K129+L129+M129","v":0}]
["уменьшение стоимости ценных бумаг, кроме акций",null,null,null,null,null,null,null,"422","620",0,0,0,{"$f":"K130+L130+M130","v":0}]
["Чистое поступление акций и иных форм участия в капитале",null,null,null,null,null,null,null,"440",null,{"$f":"K133-K134","v":0},{"$f":"L133-L134","v":0},{"$f":"M133-M134","v":0},{"$f":"K131+L131+M131","v":0}]
["                           в том числе:"]
["                   увеличение стоимости акций и иных форм участия в капитале",null,null,null,null,null,null,null,"441","530",0,0,0,{"$f":"K133+L133+M133","v":0}]
["                   уменьшение стоимости акций и иных форм участия в капитале",null,null,null,null,null,null,null,"442","630",0,0,0,{"$f":"K134+L134+M134","v":0}]
["Чистое предоставление займов (ссуд)",null,null,null,null,null,null,null,"460",null,{"$f":"K137-K138","v":0},{"$f":"L137-L138","v":0},{"$f":"M137-M138","v":0},{"$f":"K135+L135+M135","v":0}]
["                           в том числе:"]
["                   увеличение задолженности по  предоставленным займам (ссудам)",null,null,null,null,null,null,null,"461","540",0,0,0,{"$f":"K137+L137+M137","v":0}]
["                   уменьшение задолженности по  предоставленным займам (ссудам)",null,null,null,null,null,null,null,"462","640",0,0,0,{"$f":"K138+L138+M138","v":0}]
["Чистое поступление иных финансовых активов   ",null,null,null,null,null,null,null,"470",null,{"$f":"K141-K142","v":0},{"$f":"L141-L142","v":0},{"$f":"M141-M142","v":0},{"$f":"K139+L139+M139","v":0}]
["                           в том числе:"]
["                   увеличение стоимости  иных финансовых активов",null,null,null,null,null,null,null,"471","550",0,0,0,{"$f":"K141+L141+M141","v":0}]
["                   уменьшение стоимости  иных финансовых активов",null,null,null,null,null,null,null,"472","650",0,0,0,{"$f":"K142+L142+M142","v":0}]
["Чистое увеличение дебиторской задолженности ",null,null,null,null,null,null,null,"480",null,{"$f":"K145-K146","v":0},{"$f":"L145-L146","v":-314472.73},{"$f":"M145-M146","v":9797.81},{"$f":"K143+L143+M143","v":-304674.92}]
["                           в том числе:"]
["                   увеличение дебиторской задолженности",null,null,null,null,null,null,null,"481","560",578747.06000000006,23887538.870000001,1531689.81,{"$f":"K145+L145+M145","v":25997975.739999998}]
["                   уменьшение дебиторской задолженности",null,null,null,null,null,null,null,"482","660",578747.06000000006,24202011.600000001,1521892,{"$f":"K146+L146+M146","v":26302650.66}]
[null,null,null,null,null,null,null,null,null,null,null,null,null,"Форма 0503721 с.5"]
[null,null,null,null,null,null,null,null,"Код","Код анали-тики","Деятельность","Деятельность по","Приносящая"]
["Наименование показателя",null,null,null,null,null,null,null,"стро-",null,"с целевыми","государственному","доход","Итого"]
[null,null,null,null,null,null,null,null,"ки",null,"средствами","заданию","деятельность"]
[1,null,null,null,null,null,null,null,2,3,4,5,"6","7"]
["Операции с обязательствами (стр.520 + стр.530 + стр.540)",null,null,null,null,null,null,null,"510",null,{"$f":"K153+K157+K161","v":5431.07},{"$f":"L153+L157+L161","v":847424.89},{"$f":"M153+M157+M161","v":86202.36},{"$f":"K152+L152+M152","v":939058.32}]
["Чистое увеличение задолженности по привлечениям перед резидентами",null,null,null,null,null,null,null,"520",null,{"$f":"K155-K156","v":0},{"$f":"L155-L156","v":0},{"$f":"M155-M156","v":0},{"$f":"K153+L153+M153","v":0}]
["                           в том числе:"]
["                   увеличение задолженности по привлечениям перед резидентами",null,null,null,null,null,null,null,"521","710",null,0,0,{"$f":"K155+L155+M155","v":0}]
["                   уменьшение задолженности по привлечениям перед резидентами",null,null,null,null,null,null,null,"522","810",null,0,0,{"$f":"K156+L156+M156","v":0}]
["Чистое увеличение задолженности по привлечениям перед нерезидентами",null,null,null,null,null,null,null,"530",null,{"$f":"K159-K160","v":0},{"$f":"L159-L160","v":0},{"$f":"M159-M160","v":0},{"$f":"K157+L157+M157","v":0}]
["                           в том числе:"]
["                   увеличение задолженности по привлечениям перед нерезедентами",null,null,null,null,null,null,null,"531","720",null,0,0,{"$f":"K159+L159+M159","v":0}]
["                   уменьшение задолженности по привлечениям перед нерезидентами",null,null,null,null,null,null,null,"532","820",null,0,0,{"$f":"K160+L160+M160","v":0}]
["Чистое увеличение прочей кредиторской задолженности ",null,null,null,null,null,null,null,"540",null,{"$f":"K163-K164","v":5431.07},{"$f":"L163-L164","v":847424.89},{"$f":"M163-M164","v":86202.36},{"$f":"K161+L161+M161","v":939058.32}]
["                           в том числе:"]
["                   увеличение прочей кредиторской задолженности",null,null,null,null,null,null,null,"541","730",584178.13,41636557.079999998,1609554.04,{"$f":"K163+L163+M163","v":43830289.25}]
["                   уменьшение прочей кредиторской задолженности",null,null,null,null,null,null,null,"542","830",578747.06000000006,40789132.189999998,1523351.68,{"$f":"K164+L164+M164","v":42891230.93}]
[]
["Руководитель",null,null,null,null,"Рудаева С.В.",null,null,null,"Руководитель финансово-    ____________________      ___________________________"]
[null,null,"(подпись)",null,null,"(расшифровка подписи)",null,null,null,"экономической службы                    (подпись)                          (расшифровка подписи)"]
[]
["Главный бухгалтер",null,null,null,null,"Окружко Н.Г."]
[null,null,"(подпись)",null,null,"(расшифровка подписи)"]
[null,null,null,null,null,null,null,"Централизованная"]
[null,null,null,null,null,null,null,"бухгалтерия",null,null,"(наименование, ОГРН, ИНН, КПП, местонахождение)"]
[]
[null,null,null,null,null,"Руководитель"]
[null,null,null,null,null,"(уполномоченное лицо)            ",null,"(должность) ",null,null,"(подпись) ",null,"(расшифровка подписи)"]
[]
["Исполнитель  ____________________     __________________",null,null,null,null,null,"",null,null,""]
["                                 (должность)                        (подпись)",null,null,null,null,null,"(расшифровка подписи)",null,null,"(телефон, e-mail)"]
[]
["\" _______ \"  ______________________ 20____ г."]

{"sheet":"Настройка","index":1,"n_rows":255,"n_cols":255,"rows_kept":255,"cut":false,"hidden":false,"merged":[]}
[null,"This.Print0s = .T.","Header",null,null,null,null,null,null,null,null,null,null,null,null,null,null,null,null,null,null,null,null,null,null,null,null,null,null,null,null,null,null,null,null,null,null,null,null,null,null,null,null,null,null,null,null,null,null,null,null,null,null,null,null,null,null,null,null,null,null,null,null,null,null,null,null,null,null,null,null,null,null,null,null,null,null,null,null,null,null,null,null,null,null,null,null,null,null,null,null,null,null,null,null,null,null,null,null,null,null,null,null,null,null,null,null,null,null,null,null,null,null,null,null,null,null,null,null,null,null,null,null,null,null,null,null,null,null,null,null,null,null,null,null,null,null,null,null,null,null,null,null,null,null,null,null,null,null,null,null,null,null,null,null,null,null,null,null,null,null,null,null,null,null,null,null,null,null,null,null,null,null,null,null,null,null,null,null,null,null,null,null,null,null,null,null,null,null,null,null,null,null,null,null,null,null,null,null,null,null,null,null,null,null,null,null,null,null,null,null,null,null,null,null,null,null,null,null,null,null,null,null,null,null,null,null,null,null,null,null,null,null,null,null,null,null,null,null,null,null,null,null,null,null,null,null,null,null,null,null,null,null,null,":б\u0018\u0001R^ћфИ\u0012ЈЫ\nЉК±"]
[null,"__p_Date = Iif(Empty(m.dReoDate), m.dDateEnd + 1, m.dReoDate)","Header"]
[null,"__p_OrgRn = Iif(m.cOrg # \"|\" And Len(m.cOrg) == 4, m.cOrg, oSystem.OwnerOrgRn)","Header"]
["ДатаОтчета","\"на \" +  DToCLong(__p_Date)","Header"]
["Дата","DToC2000(__p_Date)","Header"]
["ОРГАНИЗАЦИЯ","This.__getOrgName(__p_OrgRn)","Header"]
["ОКПО","AllTrim(This.Seek_TableFields(\"Org\", \"RN\", \"Org.OKPO\", __p_OrgRn))","Header"]
["Учредитель","This.__getOrgName(m.cRN_Found)","Header"]
["ОКАТО","AllTrim(This.Seek_TableFields(\"OrgBase\", \"RN\", \"OrgBase.OKATO\", __p_OrgRn))","Header"]
["ОКПО2","AllTrim(This.Seek_TableFields(\"Org\", \"RN\", \"Org.OKPO\", m.cRN_Found))","Header"]
[null,"__p_INN = AllTrim(This.Seek_TableFields(\"OrgBase\", \"RN\", \"OrgBase.INN\", m.cRN_Found))","Header"]
[null,"__p_pos = AT(\"/\", __p_INN)","Header"]
["ИНН","AllTrim(Iif(__p_pos = 0, __p_INN, Left(__p_INN, __p_pos - 1)))","Header"]
["ГлаваБК","AllTrim(m.glBK)","Header"]
["Col5Row030","nCol5Row030","Header"]
["Col6Row030","nCol6Row030","Header"]
["Col6Row040","nCol6Row040","Header"]
["Col6Row050","nCol6Row050","Header"]
["Col5Row062","nCol5Row062","Header"]
["Col5Row063","nCol5Row063","Header"]
["Col5Row091","nCol5Row091","Header"]
["Col4Row091","nCol4Row091","Header"]
["Col6Row091","nCol6Row091","Header"]
["Col4Row093","nCol4Row093","Header"]
["Col5Row093","nCol5Row093","Header"]
["Col6Row093","nCol6Row093","Header"]
["Col5Row096","nCol5Row096","Header"]
["Col4Row099","nCol4Row099","Header"]
["Col5Row099","nCol5Row099","Header"]
["Col6Row099","nCol6Row099","Header"]
["Col5Row101","nCol5Row101","Header"]
["Col4Row101","nCol4Row101","Header"]
["Col4Row102","nCol4Row102","Header"]
["Col4Row103","nCol4Row103","Header"]
["Col6Row103","nCol6Row103","Header"]
["Col5Row104","nCol5Row104","Header"]
["Col6Row104","nCol6Row104","Header"]
["Col4Row110","nCol4Row110","Header"]
["Col5Row110","nCol5Row110","Header"]
["Col6Row110","nCol6Row110","Header"]
["Col4Row161","nCol4Row161","Header"]
["Col4Row162","nCol4Row162","Header"]
["Col4Row163","nCol4Row163","Header"]
["Col4Row171","nCol4Row171","Header"]
["Col4Row172","nCol4Row172","Header"]
["Col4Row173","nCol4Row173","Header"]
["Col4Row174","nCol4Row174","Header"]
["Col4Row175","nCol4Row175","Header"]
["Col4Row176","nCol4Row176","Header"]
["Col4Row211","nCol4Row211","Header"]
["Col6Row211","nCol6Row211","Header"]
["Col4Row212","nCol4Row212","Header"]
["Col4Row232","nCol4Row232","Header"]
["Col4Row233","nCol4Row233","Header"]
["Col4Row242","nCol4Row242","Header"]
["Col4Row243","nCol4Row243","Header"]
["Col4Row250","nCol4Row250","Header"]
["Col5Row161","nCol5Row161","Header"]
["Col6Row161","nCol6Row161","Header"]
["Col5Row162","nCol5Row162","Header"]
["Col6Row162","nCol6Row162","Header"]
["Col5Row163","nCol5Row163","Header"]
["Col6Row163","nCol6Row163","Header"]
["Col5Row171","nCol5Row171","Header"]
["Col6Row171","nCol6Row171","Header"]
["Col5Row172","nCol5Row172","Header"]
["Col5Row173","nCol5Row173","Header"]
["Col6Row172","nCol6Row172","Header"]
["Col6Row173","nCol6Row173","Header"]
["Col5Row174","nCol5Row174","Header"]
["Col6Row174","nCol6Row174","Header"]
["Col5Row175","nCol5Row175","Header"]
["Col5Row176","nCol5Row176","Header"]
["Col6Row175","nCol6Row175","Header"]
["Col6Row176","nCol6Row176","Header"]
["Col5Row211","nCol5Row211","Header"]
["Col5Row212","nCol5Row212","Header"]
["Col6Row211","nCol6Row211","Header"]
["Col6Row212","nCol6Row212","Header"]
["Col5Row232","nCol5Row232","Header"]
["Col5Row233","nCol5Row233","Header"]
["Col6Row232","nCol6Row232","Header"]
["Col6Row233","nCol6Row233","Header"]
["Col5Row242","nCol5Row242","Header"]
["Col6Row242","nCol6Row242","Header"]
["Col5Row243","nCol5Row243","Header"]
["Col6Row243","nCol6Row243","Header"]
["Col5Row250","nCol5Row250","Header"]
["Col6Row250","nCol6Row250","Header"]
["Col5Row191","nCol5Row191","Header"]
["Col6Row191","nCol6Row191","Header"]
["Col5Row192","nCol5Row192","Header"]
["Col6Row192","nCol6Row192","Header"]
["Col5Row261","nCol5Row261","Header"]
["Col5Row264","nCol5Row264","Header"]
["Col5Row269","nCol5Row269","Header"]
["Col6Row261","nCol6Row261","Header"]
["Col6Row264","nCol6Row264","Header"]
["Col6Row269","nCol6Row269","Header"]
["Col5Row290","nCol5Row290","Header"]
["Col6Row290","nCol6Row290","Header"]
["Col5Row302","nCol5Row302","Header"]
["Col6Row302","nCol6Row302","Header"]
["Col4Row303","nCol4Row303","Header"]
["Col5Row303","nCol5Row303","Header"]
["Col6Row303","nCol6Row303","Header"]
["Col5Row321","nCol5Row321","Header"]
["Col5Row322","nCol5Row322","Header"]
["Col5Row331","nCol5Row331","Header"]
["Col5Row332","nCol5Row332","Header"]
["Col5Row351","nCol5Row351","Header"]
["Col5Row352","nCol5Row352","Header"]
["Col5Row361","nCol5Row361","Header"]
["Col5Row362","nCol5Row362","Header"]
["Col5Row371","nCol5Row371","Header"]
["Col5Row372","nCol5Row372","Header"]
["Col4Row261","nCol4Row261","Header"]
["Col4Row264","nCol4Row264","Header"]
["Col4Row269","nCol4Row269","Header"]
["Col4Row290","nCol4Row290","Header"]
["Col4Row321","nCol4Row321","Header"]
["Col4Row322","nCol4Row322","Header"]
["Col4Row331","nCol4Row331","Header"]
["Col4Row332","nCol4Row332","Header"]
["Col4Row351","nCol4Row351","Header"]
["Col4Row352","nCol4Row352","Header"]
["Col4Row361","nCol4Row361","Header"]
["Col4Row362","nCol4Row362","Header"]
["Col4Row371","nCol4Row371","Header"]
["Col4Row372","nCol4Row372","Header"]
["Col6Row321","nCol6Row321","Header"]
["Col6Row322","nCol6Row322","Header"]
["Col6Row331","nCol6Row331","Header"]
["Col6Row332","nCol6Row332","Header"]
["Col6Row351","nCol6Row351","Header"]
["Col6Row352","nCol6Row352","Header"]
["Col6Row361","nCol6Row361","Header"]
["Col6Row362","nCol6Row362","Header"]
["Col6Row371","nCol6Row371","Header"]
["Col6Row372","nCol6Row372","Header"]
["Col4Row411","nCol4Row411","Header"]
["Col4Row412","nCol4Row412","Header"]
["Col4Row421","nCol4Row421","Header"]
["Col4Row422","nCol4Row422","Header"]
["Col4Row441","nCol4Row441","Header"]
["Col4Row442","nCol4Row442","Header"]
["Col4Row461","nCol4Row461","Header"]
["Col4Row462","nCol4Row462","Header"]
["Col4Row471","nCol4Row471","Header"]
["Col4Row472","nCol4Row472","Header"]
["Col4Row481","nCol4Row481","Header"]
["Col4Row482","nCol4Row482","Header"]
["Col5Row411","nCol5Row411","Header"]
["Col5Row412","nCol5Row412","Header"]
["Col5Row421","nCol5Row421","Header"]
["Col5Row422","nCol5Row422","Header"]
["Col5Row441","nCol5Row441","Header"]
["Col5Row442","nCol5Row442","Header"]
["Col5Row461","nCol5Row461","Header"]
["Col5Row462","nCol5Row462","Header"]
["Col5Row471","nCol5Row471","Header"]
["Col5Row472","nCol5Row472","Header"]
["Col5Row481","nCol5Row481","Header"]
["Col5Row482","nCol5Row482","Header"]
["Col6Row411","nCol6Row411","Header"]
["Col6Row412","nCol6Row412","Header"]
["Col6Row421","nCol6Row421","Header"]
["Col6Row422","nCol6Row422","Header"]
["Col6Row441","nCol6Row441","Header"]
["Col6Row442","nCol6Row442","Header"]
["Col6Row461","nCol6Row461","Header"]
["Col6Row462","nCol6Row462","Header"]
["Col6Row471","nCol6Row471","Header"]
["Col6Row472","nCol6Row472","Header"]
["Col6Row481","nCol6Row481","Header"]
["Col6Row482","nCol6Row482","Header"]
["Col5Row521","nCol5Row521","Header"]
["Col6Row521","nCol6Row521","Header"]
["Col5Row522","nCol5Row522","Header"]
["Col6Row522","nCol6Row522","Header"]
["Col5Row531","nCol5Row531","Header"]
["Col5Row532","nCol5Row532","Header"]
["Col6Row531","nCol6Row531","Header"]
["Col6Row532","nCol6Row532","Header"]
["Col5Row541","nCol5Row541","Header"]
["Col5Row542","nCol5Row542","Header"]
["Col4Row541","nCol4Row541","Header"]
["Col4Row542","nCol4Row542","Header"]
["Col6Row541","nCol6Row541","Header"]
["Col6Row542","nCol6Row542","Header"]
["Руководитель","This.__GetOrgBoss(__p_OrgRn, 2)","Header"]
["ГлБух","This.__GetOrgAcc(__p_OrgRn, 2)","Header"]
["Исполнитель","AllTrim(m.cIspName)","Header"]
["Телефон","AllTrim(m.cIspTel)","Header"]
["txt_fileName","m.cFileName","Header"]
["txt_setPageОтчет","[<set page=\"Отчет\" tblDelim=\"|\" areaEmptyCell=\"x\" tblEmptyCell=\"0\" tblMissEmptyStr=\"] + Iif(m.nEmptyRows = 1, [2], [1,2]) + [\"/>]","Header"]
["МФДатаПо","DToC2000(__p_Date)","Header"]
["МФИСТ","m.cIST","Header"]
["МФРуководитель","This.__GetOrgBoss(__p_OrgRn, 2)","Header"]
["МФГлБух","This.__GetOrgAcc(__p_OrgRn, 2)","Header"]
["МФИсполнитель","AllTrim(m.cIspName)","Header"]
["МФТелефон","AllTrim(m.cIspTel)","Header"]
["МФППО","Left(AllTrim(oSystem.SystemCaption), 50)","Header"]
[null,"Выгрузка в ГНИ 4"]
["ГНИ4_ИдФайл","m.cFileId4","Header"]
["ГНИ4_ВерсПрог","Left(Alltrim(oSystem.SystemCaption), 40)","Header"]
["ГНИ4_ДатаДок","DToC2000(oSystem.Date)","Header"]
["ГНИ4_ДатаОтч","DToC2000(oSystem.Date)","Header"]
["ГНИ4_ОтчетГод","m.nSelYear","Header"]
["ГНИ4_ОКПО","AllTrim(This.Seek_TableFields(\"Org\", \"RN\", \"Org.OKPO\", __p_OrgRn))","Header"]
["ГНИ4_ОКАТО","AllTrim(This.Seek_TableFields(\"OrgBase\", \"RN\", \"OrgBase.OKATO\", __p_OrgRn))","Header"]
["ГНИ4_ОКПО_Учр","AllTrim(This.Seek_TableFields(\"Org\", \"RN\", \"Org.OKPO\", m.cRN_Found))","Header"]
["ГНИ4_ГлаваБК","AllTrim(m.glBK)","Header"]
["ГНИ4_НаимОрг","This.__getOrgName(__p_OrgRn)","Header"]
[null,"__p_INN = AllTrim(This.Seek_TableFields(\"OrgBase\", \"RN\", \"OrgBase.INN\", __p_OrgRn))","Header"]
[null,"__p_pos = AT(\"/\", __p_INN)","Header"]
["ГНИ4_ИННЮЛ","Iif(__p_pos = 0, __p_INN, AllTrim(Left(__p_INN, __p_pos - 1)))","Header"]
["ГНИ4_КПП","Iif(__p_pos = 0, \"\", AllTrim(SubStr(__p_INN, __p_pos + 1)))","Header"]
["ГНИ4_Учредит","This.__getOrgName(m.cRN_Found)","Header"]
["ГНИ4_УчредПолн","This.__getOrgName(m.cRN_Found)","Header"]
["ГНИ4_ПрПодп","Iif(Empty(m.cAgent_RN), 1, 2)","Header"]
[null,"__p_BossRN = Iif(Empty(m.cAgent_RN), PadR(This.Seek_TableFields(\"Org\", \"RN\", \"Org.Boss_RN\", __p_OrgRn), 4), m.cAgent_RN)","Header"]
["ГНИ4_Фамилия","AllTrim(This.Seek_TableFields(\"Person\", \"RN\", \"Person.SurName\", __p_BossRN))","Header"]
["ГНИ4_Имя","AllTrim(This.Seek_TableFields(\"Person\", \"RN\", \"Person.FirstName\", __p_BossRN))","Header"]
["ГНИ4_Отчество","AllTrim(This.Seek_TableFields(\"Person\", \"RN\", \"Person.SecondName\", __p_BossRN))","Header"]
[null,"__p_AccRN =  PadR(This.Seek_TableFields(\"Org\", \"RN\", \"Org.Acc_RN\", __p_OrgRn), 4)","Header"]
["ГНИ4_Фамилия2","AllTrim(This.Seek_TableFields(\"Person\", \"RN\", \"Person.SurName\", __p_AccRN))","Header"]
["ГНИ4_Имя2","AllTrim(This.Seek_TableFields(\"Person\", \"RN\", \"Person.FirstName\", __p_AccRN))","Header"]
["ГНИ4_Отчество2","AllTrim(This.Seek_TableFields(\"Person\", \"RN\", \"Person.SecondName\", __p_AccRN))","Header"]
["ГНИ4_СвПред","Iif(Empty(m.cAgent_RN), \"\", \"*\")","Header"]
["ГНИ4_НаимДок","Iif(Empty(m.cAgent_RN), \"\", AllTrim(m.cAgentDoc))","Header"]
[null,"Выгрузка на сайт bus.gov.ru"]
["CreateDate","ttoc(DATETIME())","Header"]
["GUIDPK","m.cGUIDPk","Header"]
["GUIDPZ","m.cGUIDPz","Header"]
["regNumIn","m.cNumGMU_In","Header"]
["FullName","AllTrim(This.__getOrgName(__p_OrgRn))","Header"]
[null,"__p_INN = AllTrim(This.Seek_TableFields(\"OrgBase\", \"RN\", \"OrgBase.INN\", __p_OrgRn))","Header"]
[null,"__p_pos = AT(\"/\", __p_INN)","Header"]
["INNPlacer","Iif(__p_pos = 0, __p_INN, AllTrim(Left(__p_INN, __p_pos - 1)))","Header"]
["KPPPlacer","Iif(__p_pos = 0, \"\", AllTrim(SubStr(__p_INN, __p_pos + 1)))","Header"]
["regNumOut","m.cNumGMU_Out","Header"]
["fullNameOut","This.__getOrgName(m.cRN_Found)","Header"]
["GeneralDate","Alltrim(Dtoc(__p_Date))","Header"]
["OKPOCode","AllTrim(This.Seek_TableFields(\"Org\", \"RN\", \"Org.OKPO\", __p_OrgRn))","Header"]
["OKATOCode","AllTrim(This.Seek_TableFields(\"OrgBase\", \"RN\", \"OrgBase.OKATO\", __p_OrgRn))","Header"]
["FormatPeriod","Alltrim(STR(m.nSelYear))","Header"]
["Section","Alltrim(m.glBK)","Header"]
["founderName","This.__getOrgName(m.cRN_Found)","Header"]
["founderOKPO","AllTrim(This.Seek_TableFields(\"Org\", \"RN\", \"Org.OKPO\", m.cRN_Found))","Header"]
["xml_fileName","m.cFileName4","Header"]
["xml_fileName8","m.cFileName8","Header"]
[null,"This.Book.Sheet = 1","Header"]
[null,"This.Tag = \"textout\"","Header"]
[null,"This.Book.PrecisionAsDisplayed = .T.","Header"]

{"sheet":"Выгрузка в ГНИ 4","index":2,"n_rows":790,"n_cols":10,"rows_kept":790,"cut":false,"hidden":false,"merged":[]}
["Путь к файлу выгрузки: ",null,"E:\\OBMEN\\ОКРУЖКО\\Выгрузка отчетов\\ГНИ ф.721\\NO_BOUCHR7_6446_6446_6446010014644601001_20160211_1.xml"]
[null,null,null,null,null,null,"<textout version=\"1.0\" caption=\"Выгрузка в ГНИ 4\"/>"]
[null,null,null,null,null,null,"<btn page=\"Выгрузка в ГНИ 4\" coord=\"(450, 90, 100, 25)\"/>"]
["Корень","Файл",null,"*",null,null,null,null,null,"Файл обмена"]
["Атрибут","ИдФайл","NO_BOUCHR7_6446_6446_6446010014644601001_20160211_1","*",null,null,null,null,null,"Идентификатор файла"]
["Атрибут","ВерсПрог","ПАРУС Бухгалтерия","*",null,null,null,null,null,"Версия передающей  программы"]
["Атрибут","ВерсФорм","5.02","*",null,null,null,null,null,"Версия формата"]
["Элемент","Документ",null,"*",null,null,null,null,null,"Состав и структура документа"]
["Атрибут","КНД","0503721","*",null,null,null,null,null,"Код формы отчетности по КНД"]
["Атрибут","ДатаДок","11.02.2016","*",null,null,null,null,null,"Дата формирования документа"]
["Атрибут","Период","34","*",null,null,null,null,null,"Отчетный период"]
["Атрибут","ОтчетГод","2015","*",null,null,null,null,null,"Отчетный год"]
["Атрибут","НомКорр",0,"*",null,null,null,null,null,"Номер корректировки"]
["Элемент","СвНП",null,"*",null,null,null,null,null,"Сведения о налогоплательщике"]
["Атрибут","ОКПО","36172359",null,null,null,null,null,null,"Код по ОКПО"]
["Атрибут","ОКАТО","63440000000",null,null,null,null,null,null,"Код по ОКАТО"]
["Атрибут","ОКПО_Учр","",null,null,null,null,null,null,"Код органа, осуществляющего полномочия учредителя по ОКПО"]
["Атрибут","ГлаваБК","",null,null,null,null,null,null,"Глава по БК"]
["Элемент","НПЮЛ",null,"*",null,null,null,null,null,"Налогоплательщик – учреждение"]
["Атрибут","НаимОрг","УФК по Саратовской области (Фин. управление администрации Ртищевского муницип. района СОШ №3 )","*",null,null,null,null,null,"Наименование учреждения"]
["Атрибут","ИННЮЛ","6446010014","*",null,null,null,null,null,"ИНН учреждения"]
["Атрибут","КПП","644601001","*",null,null,null,null,null,"КПП учреждения"]
["Атрибут","НаимОП",null,null,null,null,null,null,null,"Наименование обособленного подразделения"]
["Атрибут","Учредит","",null,null,null,null,null,null,"Учредитель"]
["Атрибут","УчредПолн","",null,null,null,null,null,null,"Наименование органа, осуществляющего полномочия учредителя"]
["###"]
["###"]
["Элемент","Подписант",null,"*",null,null,null,null,null,"Сведения о лице, подписавшем документ"]
["Атрибут","ПрПодп","1","*",null,null,null,null,null,"Признак лица, подписавшего документ (1 - руководитель, 2 – уполномоченный представитель)"]
["Атрибут","Тлф",null,null,null,null,null,null,null,"Номер контактного телефона"]
["Атрибут","E-mail",null,null,null,null,null,null,null,"E-mail"]
["Элемент","ФИО",null,"*",null,null,null,null,null,"Фамилия, имя, отчество руководителя (уполномоченного представителя)"]
["Атрибут","Фамилия","Рудаева","*",null,null,null,null,null,"Фамилия"]
["Атрибут","Имя","Светлана","*",null,null,null,null,null,"Имя"]
["Атрибут","Отчество","Владимировна",null,null,null,null,null,null,"Отчество"]
["###"]
["Элемент","ФИОГлБух",null,null,null,null,null,null,null,"Фамилия, имя, отчество главного бухгалтера"]
["Атрибут","Фамилия","Окружко","*",null,null,null,null,null,"Фамилия"]
["Атрибут","Имя","Наталья","*",null,null,null,null,null,"Имя"]
["Атрибут","Отчество","Григорьевна",null,null,null,null,null,null,"Отчество"]
["###"]
["Элемент","СвПред",null,"",null,null,null,null,null,"Сведения об уполномоченном представителе"]
["Атрибут","НаимДок","","*",null,null,null,null,null,"Наименование документа, подтверждающего полномочия представителя"]
["###"]
["###"]
["Элемент","ОтчетФинРез",null,"*",null,null,null,null,null,"Отчет об исполнении учреждением плана его финансово-хозяйственной деятельности"]
["Атрибут","ДатаОтч","11.02.2016","*",null,null,null,null,null,"Дата, на которую сформирован документ"]
["Атрибут","ОКЕИ",383,"*",null,null,null,null,null,"Код единицы измерения по ОКЕИ"]
["Элемент","Доход"]
["Элемент","ДохВс",null,"*",null,null,null,null,null,"Доходы - всего"]
["Атрибут","КодАналит",{"$f":"Отчет!J16","v":"100"},null,null,null,null,null,null,"Код аналитики"]
["Атрибут","ЦелевСред",{"$f":"Отчет!K16","v":578747.06000000006},null,null,null,null,null,null,"Деятельность с целевыми средствами"]
["Атрибут","ОказУслуг",{"$f":"Отчет!L16","v":23534272.699999999},null,null,null,null,null,null,"Деятельность по оказанию услуг (работ)"]
["Атрибут","СрВремРасп",{"$f":"Отчет!M16","v":1531689.81},null,null,null,null,null,null,"Средства во временном распоряжении"]
["Атрибут","Итого",{"$f":"Отчет!N16","v":25644709.57},"*",null,null,null,null,null,"Итого"]
["###",null,null,null,null,null,null,null,null,"ДохВс"]
["Элемент","ДохСобств"]
["Атрибут","КодАналит",{"$f":"Отчет!J17","v":"120"},null,null,null,null,null,null,"Код аналитики"]
["Атрибут","ЦелевСред",{"$f":"Отчет!K17","v":0},null,null,null,null,null,null,"Деятельность с целевыми средствами"]
["Атрибут","ОказУслуг",{"$f":"Отчет!L17","v":0},null,null,null,null,null,null,"Деятельность по оказанию услуг (работ)"]
["Атрибут","СрВремРасп",{"$f":"Отчет!M17","v":0},null,null,null,null,null,null,"Средства во временном распоряжении"]
["Атрибут","Итого",{"$f":"Отчет!N17","v":0},"*",null,null,null,null,null,"Итого"]
["###",null,null,null,null,null,null,null,null,"ДохСобств"]
["Элемент","ДохПлатУсл"]
["Атрибут","КодАналит",{"$f":"Отчет!J18","v":"130"},null,null,null,null,null,null,"Код аналитики"]
["Атрибут","ЦелевСред",{"$f":"Отчет!K18","v":0},null,null,null,null,null,null,"Деятельность с целевыми средствами"]
["Атрибут","ОказУслуг",{"$f":"Отчет!L18","v":0},null,null,null,null,null,null,"Деятельность по оказанию услуг (работ)"]
["Атрибут","СрВремРасп",{"$f":"Отчет!M18","v":1531689.81},null,null,null,null,null,null,"Средства во временном распоряжении"]
["Атрибут","Итого",{"$f":"Отчет!N18","v":1531689.81},"*",null,null,null,null,null,"Итого"]
["###",null,null,null,null,null,null,null,null,"ДохПлатУсл"]
["Элемент","ДохШтраф",null,null,null,null,null,null,null,"Доходы от штрафов, пени, иных сумм принудительного изъятия"]
["Атрибут","КодАналит",{"$f":"Отчет!J19","v":"140"},null,null,null,null,null,null,"Код аналитики"]
["Атрибут","ЦелевСред",{"$f":"Отчет!K19","v":0},null,null,null,null,null,null,"Деятельность с целевыми средствами"]
["Атрибут","ОказУслуг",{"$f":"Отчет!L19","v":0},null,null,null,null,null,null,"Деятельность по оказанию услуг (работ)"]
["Атрибут","СрВремРасп",{"$f":"Отчет!M19","v":0},null,null,null,null,null,null,"Средства во временном распоряжении"]
["Атрибут","Итого",{"$f":"Отчет!N19","v":0},"*",null,null,null,null,null,"Итого"]
["###",null,null,null,null,null,null,null,null,"ДохШтраф"]
["Элемент","БВПостБюдж",null,null,null,null,null,null,null,"Безвозмездные поступления от бюджетов"]
["Элемент","БВПостБюджВс",null,"*",null,null,null,null,null,"Безвозмездные поступления от бюджетов - всего"]
["Атрибут","КодАналит",{"$f":"Отчет!J20","v":"150"},null,null,null,null,null,null,"Код аналитики"]
["Атрибут","ЦелевСред",{"$f":"Отчет!K20","v":0},null,null,null,null,null,null,"Деятельность с целевыми средствами"]
["Атрибут","ОказУслуг",{"$f":"Отчет!L20","v":0},null,null,null,null,null,null,"Деятельность по оказанию услуг (работ)"]
["Атрибут","СрВремРасп",{"$f":"Отчет!M20","v":0},null,null,null,null,null,null,"Средства во временном распоряжении"]
["Атрибут","Итого",{"$f":"Отчет!N20","v":0},"*",null,null,null,null,null,"Итого"]
["###"]
["Элемент","ПостИно",null,null,null,null,null,null,null,"Поступления от наднациональных организаций и правительств иностранных государств"]
["Атрибут","КодАналит",{"$f":"Отчет!J23","v":"152"},null,null,null,null,null,null,"Код аналитики"]
["Атрибут","ЦелевСред",{"$f":"Отчет!K23","v":0},null,null,null,null,null,null,"Деятельность с целевыми средствами"]
["Атрибут","ОказУслуг",{"$f":"Отчет!L23","v":0},null,null,null,null,null,null,"Деятельность по оказанию услуг (работ)"]
["Атрибут","СрВремРасп",{"$f":"Отчет!M23","v":0},null,null,null,null,null,null,"Средства во временном распоряжении"]
["Атрибут","Итого",{"$f":"Отчет!N23","v":0},"*",null,null,null,null,null,"Итого"]
["###"]
["Элемент","ПостМФО",null,null,null,null,null,null,null,"Поступления от международных финансовых организаций"]
["Атрибут","КодАналит",{"$f":"Отчет!J24","v":"153"},null,null,null,null,null,null,"Код аналитики"]
["Атрибут","ЦелевСред",{"$f":"Отчет!K24","v":0},null,null,null,null,null,null,"Деятельность с целевыми средствами"]
["Атрибут","ОказУслуг",{"$f":"Отчет!L24","v":0},null,null,null,null,null,null,"Деятельность по оказанию услуг (работ)"]
["Атрибут","СрВремРасп",{"$f":"Отчет!M24","v":0},null,null,null,null,null,null,"Средства во временном распоряжении"]
["Атрибут","Итого",{"$f":"Отчет!N24","v":0},"*",null,null,null,null,null,"Итого"]
["###"]
["###",null,null,null,null,null,null,null,null,"БВПостБюдж"]
["Элемент","ДохАктив",null,null,null,null,null,null,null,"Доходы от операций с активами"]
["Элемент","ДохАктивВс",null,"*",null,null,null,null,null,"Доходы от операций с активами - всего"]
["Атрибут","КодАналит",{"$f":"Отчет!J25","v":"170"},null,null,null,null,null,null,"Код аналитики"]
["Атрибут","ЦелевСред",{"$f":"Отчет!K25","v":0},null,null,null,null,null,null,"Деятельность с целевыми средствами"]
["Атрибут","ОказУслуг",{"$f":"Отчет!L25","v":-328565.40000000002},null,null,null,null,null,null,"Деятельность по оказанию услуг (работ)"]
["Атрибут","СрВремРасп",{"$f":"Отчет!M25","v":0},null,null,null,null,null,null,"Средства во временном распоряжении"]
["Атрибут","Итого",{"$f":"Отчет!N25","v":-328565.40000000002},"*",null,null,null,null,null,"Итого"]
["###"]
["Элемент","ПереоцАкт",null,null,null,null,null,null,null,"Доходы от переоценки активов"]
["Атрибут","КодАналит",{"$f":"Отчет!J27","v":"171"},null,null,null,null,null,null,"Код аналитики"]
["Атрибут","ЦелевСред",{"$f":"Отчет!K27","v":0},null,null,null,null,null,null,"Деятельность с целевыми средствами"]
["Атрибут","ОказУслуг",{"$f":"Отчет!L27","v":0},null,null,null,null,null,null,"Деятельность по оказанию услуг (работ)"]
["Атрибут","СрВремРасп",{"$f":"Отчет!M27","v":0},null,null,null,null,null,null,"Средства во временном распоряжении"]
["Атрибут","Итого",{"$f":"Отчет!N27","v":0},"*",null,null,null,null,null,"Итого"]
["###"]
["Элемент","РеализАкт",null,null,null,null,null,null,null,"Доходы от реализации активов"]
["Атрибут","КодАналит",{"$f":"Отчет!J28","v":"172"},null,null,null,null,null,null,"Код аналитики"]
["Атрибут","ЦелевСред",{"$f":"Отчет!K28","v":0},null,null,null,null,null,null,"Деятельность с целевыми средствами"]
["Атрибут","ОказУслуг",{"$f":"Отчет!L28","v":-328565.40000000002},null,null,null,null,null,null,"Деятельность по оказанию услуг (работ)"]
["Атрибут","СрВремРасп",{"$f":"Отчет!M28","v":0},null,null,null,null,null,null,"Средства во временном распоряжении"]
["Атрибут","Итого",{"$f":"Отчет!N28","v":-328565.40000000002},"*",null,null,null,null,null,"Итого"]
["###"]
["Элемент","ДохРеализНеФА",null,null,null,null,null,null,null,"Доходы от реализации нефинансовых активов"]
["Атрибут","КодАналит",{"$f":"Отчет!J30","v":"172"},null,null,null,null,null,null,"Код аналитики"]
["Атрибут","ЦелевСред",{"$f":"Отчет!K30","v":0},null,null,null,null,null,null,"Деятельность с целевыми средствами"]
["Атрибут","ОказУслуг",{"$f":"Отчет!L30","v":-328565.40000000002},null,null,null,null,null,null,"Деятельность по оказанию услуг (работ)"]
["Атрибут","СрВремРасп",{"$f":"Отчет!M30","v":0},null,null,null,null,null,null,"Средства во временном распоряжении"]
["Атрибут","Итого",{"$f":"Отчет!N30","v":-328565.40000000002},"*",null,null,null,null,null,"Итого"]
["###"]
["Элемент","ДохРеализФА",null,null,null,null,null,null,null,"Доходы от реализации финансовых активов"]
["Атрибут","КодАналит",{"$f":"Отчет!J31","v":"172"},null,null,null,null,null,null,"Код аналитики"]
["Атрибут","ЦелевСред",{"$f":"Отчет!K31","v":0},null,null,null,null,null,null,"Деятельность с целевыми средствами"]
["Атрибут","ОказУслуг",{"$f":"Отчет!L31","v":0},null,null,null,null,null,null,"Деятельность по оказанию услуг (работ)"]
["Атрибут","СрВремРасп",{"$f":"Отчет!M31","v":0},null,null,null,null,null,null,"Средства во временном распоряжении"]
["Атрибут","Итого",{"$f":"Отчет!N31","v":0},"*",null,null,null,null,null,"Итого"]
["###"]
["Элемент","ЧрДохОпАкт",null,null,null,null,null,null,null,"Чрезвычайные доходы от операций с активами"]
["Атрибут","КодАналит",{"$f":"Отчет!J32","v":"173"},null,null,null,null,null,null,"Код аналитики"]
["Атрибут","ЦелевСред",{"$f":"Отчет!K32","v":0},null,null,null,null,null,null,"Деятельность с целевыми средствами"]
["Атрибут","ОказУслуг",{"$f":"Отчет!L32","v":0},null,null,null,null,null,null,"Деятельность по оказанию услуг (работ)"]
["Атрибут","СрВремРасп",{"$f":"Отчет!M32","v":0},null,null,null,null,null,null,"Средства во временном распоряжении"]
["Атрибут","Итого",{"$f":"Отчет!N32","v":0},"*",null,null,null,null,null,"Итого"]
["###"]
["###",null,null,null,null,null,null,null,null,"ДохАктив"]
["Элемент","ДохПроч",null,null,null,null,null,null,null,"Прочие доходы"]
["Элемент","ДохПрочВс",null,"*",null,null,null,null,null,"Прочие доходы - всего"]
["Атрибут","КодАналит",{"$f":"Отчет!J33","v":"180"},null,null,null,null,null,null,"Код аналитики"]
["Атрибут","ЦелевСред",{"$f":"Отчет!K33","v":578747.06000000006},null,null,null,null,null,null,"Деятельность с целевыми средствами"]
["Атрибут","ОказУслуг",{"$f":"Отчет!L33","v":23862838.100000001},null,null,null,null,null,null,"Деятельность по оказанию услуг (работ)"]
["Атрибут","СрВремРасп",{"$f":"Отчет!M33","v":0},null,null,null,null,null,null,"Средства во временном распоряжении"]
["Атрибут","Итого",{"$f":"Отчет!N33","v":24441585.16},"*",null,null,null,null,null,"Итого"]
["###"]
["Элемент","СубГосЗадан",null,null,null,null,null,null,null,"Прочие доходы по субсидии на выполнение государственного (муниципального) задания"]
["Атрибут","КодАналит",{"$f":"Отчет!J35","v":"180"},null,null,null,null,null,null,"Код аналитики"]
["Атрибут","ЦелевСред",{"$f":"Отчет!K35","v":578747.06000000006},null,null,null,null,null,null,"Деятельность с целевыми средствами"]
["Атрибут","ОказУслуг",{"$f":"Отчет!L35","v":23862838.100000001},null,null,null,null,null,null,"Деятельность по оказанию услуг (работ)"]
["Атрибут","СрВремРасп",{"$f":"Отчет!M35","v":0},null,null,null,null,null,null,"Средства во временном распоряжении"]
["Атрибут","Итого",{"$f":"Отчет!N35","v":24441585.16},"*",null,null,null,null,null,"Итого"]
["###"]
["Элемент","СубИнЦел",null,null,null,null,null,null,null,"Прочие доходы по субсидиям на иные цели"]
["Атрибут","КодАналит",{"$f":"Отчет!J36","v":"180"},null,null,null,null,null,null,"Код аналитики"]
["Атрибут","ЦелевСред",{"$f":"Отчет!K36","v":0},null,null,null,null,null,null,"Деятельность с целевыми средствами"]
["Атрибут","ОказУслуг",{"$f":"Отчет!L36","v":0},null,null,null,null,null,null,"Деятельность по оказанию услуг (работ)"]
["Атрибут","СрВремРасп",{"$f":"Отчет!M36","v":0},null,null,null,null,null,null,"Средства во временном распоряжении"]
["Атрибут","Итого",{"$f":"Отчет!N36","v":0},"*",null,null,null,null,null,"Итого"]
["###"]
["Элемент","БюджИнвест",null,null,null,null,null,null,null,"Прочие доходы по бюджетным инвестициям"]
["Атрибут","КодАналит",{"$f":"Отчет!J37","v":"180"},null,null,null,null,null,null,"Код аналитики"]
["Атрибут","ЦелевСред",{"$f":"Отчет!K37","v":0},null,null,null,null,null,null,"Деятельность с целевыми средствами"]
["Атрибут","ОказУслуг",{"$f":"Отчет!L37","v":0},null,null,null,null,null,null,"Деятельность по оказанию услуг (работ)"]
["Атрибут","СрВремРасп",{"$f":"Отчет!M37","v":0},null,null,null,null,null,null,"Средства во временном распоряжении"]
["Атрибут","Итого",{"$f":"Отчет!N37","v":0},"*",null,null,null,null,null,"Итого"]
["###"]
["Элемент","ДохИные",null,null,null,null,null,null,null,"Иные прочие доходы"]
["Атрибут","КодАналит",{"$f":"Отчет!J38","v":"180"},null,null,null,null,null,null,"Код аналитики"]
["Атрибут","ЦелевСред",{"$f":"Отчет!K38","v":0},null,null,null,null,null,null,"Деятельность с целевыми средствами"]
["Атрибут","ОказУслуг",{"$f":"Отчет!L38","v":0},null,null,null,null,null,null,"Деятельность по оказанию услуг (работ)"]
["Атрибут","СрВремРасп",{"$f":"Отчет!M38","v":0},null,null,null,null,null,null,"Средства во временном распоряжении"]
["Атрибут","Итого",{"$f":"Отчет!N38","v":0},"*",null,null,null,null,null,"Итого"]
["###"]
["###",null,null,null,null,null,null,null,null,"ДохПроч"]
["Элемент","ДохБудущПер",null,"*",null,null,null,null,null,"Доходы будущих периодов"]
["Атрибут","КодАналит",{"$f":"Отчет!J39","v":"100"},null,null,null,null,null,null,"Код аналитики"]
["Атрибут","ЦелевСред",{"$f":"Отчет!K39","v":0},null,null,null,null,null,null,"Деятельность с целевыми средствами"]
["Атрибут","ОказУслуг",{"$f":"Отчет!L39","v":0},null,null,null,null,null,null,"Деятельность по оказанию услуг (работ)"]
["Атрибут","СрВремРасп",{"$f":"Отчет!M39","v":0},null,null,null,null,null,null,"Средства во временном распоряжении"]
["Атрибут","Итого",{"$f":"Отчет!N39","v":0},"*",null,null,null,null,null,"Итого"]
["###",null,null,null,null,null,null,null,null,"ДохБудущПер"]
["###",null,null,null,null,null,null,null,null,"Доход"]
["Элемент","Расход",null,null,null,null,null,null,null,"Расходы"]
["Элемент","РасхВс",null,"*",null,null,null,null,null,"Расходы - всего"]
["Атрибут","КодАналит",{"$f":"Отчет!J45","v":"200"},null,null,null,null,null,null,"Код аналитики"]
["Атрибут","ЦелевСред",{"$f":"Отчет!K45","v":580265.13},null,null,null,null,null,null,"Деятельность с целевыми средствами"]
["Атрибут","ОказУслуг",{"$f":"Отчет!L45","v":26980709.27},null,null,null,null,null,null,"Деятельность по оказанию услуг (работ)"]
["Атрибут","СрВремРасп",{"$f":"Отчет!M45","v":1524742.76},null,null,null,null,null,null,"Средства во временном распоряжении"]
["Атрибут","Итого",{"$f":"Отчет!N45","v":29085717.16},"*",null,null,null,null,null,"Итого"]
["###",null,null,null,null,null,null,null,null,"РасхВс"]
["Элемент","ОплатТруд",null,null,null,null,null,null,null,"Оплата труда и начисления на выплаты по оплате труда"]
["Элемент","ОплатТрудВс",null,"*",null,null,null,null,null,"Оплата труда и начисления на выплаты по оплате труда - всего"]
["Атрибут","КодАналит",{"$f":"Отчет!J46","v":"210"},null,null,null,null,null,null,"Код аналитики"]
["Атрибут","ЦелевСред",{"$f":"Отчет!K46","v":0},null,null,null,null,null,null,"Деятельность с целевыми средствами"]
["Атрибут","ОказУслуг",{"$f":"Отчет!L46","v":19922264.239999998},null,null,null,null,null,null,"Деятельность по оказанию услуг (работ)"]
["Атрибут","СрВремРасп",{"$f":"Отчет!M46","v":16537.32},null,null,null,null,null,null,"Средства во временном распоряжении"]
["Атрибут","Итого",{"$f":"Отчет!N46","v":19938801.559999999},"*",null,null,null,null,null,"Итого"]
["###"]
["Элемент","ЗарабПлат",null,null,null,null,null,null,null,"Заработная плата"]
["Атрибут","КодАналит",{"$f":"Отчет!J48","v":"211"},null,null,null,null,null,null,"Код аналитики"]
["Атрибут","ЦелевСред",{"$f":"Отчет!K48","v":0},null,null,null,null,null,null,"Деятельность с целевыми средствами"]
["Атрибут","ОказУслуг",{"$f":"Отчет!L48","v":15104883.6},null,null,null,null,null,null,"Деятельность по оказанию услуг (работ)"]
["Атрибут","СрВремРасп",{"$f":"Отчет!M48","v":12990.83},null,null,null,null,null,null,"Средства во временном распоряжении"]
["Атрибут","Итого",{"$f":"Отчет!N48","v":15117874.43},"*",null,null,null,null,null,"Итого"]
["###"]
["Элемент","ПрочВыпл",null,null,null,null,null,null,null,"Прочие выплаты"]
["Атрибут","КодАналит",{"$f":"Отчет!J49","v":"212"},null,null,null,null,null,null,"Код аналитики"]
["Атрибут","ЦелевСред",{"$f":"Отчет!K49","v":0},null,null,null,null,null,null,"Деятельность с целевыми средствами"]
["Атрибут","ОказУслуг",{"$f":"Отчет!L49","v":2475.81},null,null,null,null,null,null,"Деятельность по оказанию услуг (работ)"]
["Атрибут","СрВремРасп",{"$f":"Отчет!M49","v":0},null,null,null,null,null,null,"Средства во временном распоряжении"]
["Атрибут","Итого",{"$f":"Отчет!N49","v":2475.81},"*",null,null,null,null,null,"Итого"]
["###"]
["Элемент","НачислВыплОТ",null,null,null,null,null,null,null,"Начисления на выплаты по оплате труда"]
["Атрибут","КодАналит",{"$f":"Отчет!J50","v":"213"},null,null,null,null,null,null,"Код аналитики"]
["Атрибут","ЦелевСред",{"$f":"Отчет!K50","v":0},null,null,null,null,null,null,"Деятельность с целевыми средствами"]
["Атрибут","ОказУслуг",{"$f":"Отчет!L50","v":4814904.83},null,null,null,null,null,null,"Деятельность по оказанию услуг (работ)"]
["Атрибут","СрВремРасп",{"$f":"Отчет!M50","v":3546.49},null,null,null,null,null,null,"Средства во временном распоряжении"]
["Атрибут","Итого",{"$f":"Отчет!N50","v":4818451.32},"*",null,null,null,null,null,"Итого"]
["###"]
["###",null,null,null,null,null,null,null,null,"ОплатТруд"]
["Элемент","ПриобРаб",null,null,null,null,null,null,null,"Приобретение работ, услуг"]
["Элемент","ПриобРабВс",null,"*",null,null,null,null,null,"Приобретение работ, услуг - всего"]
["Атрибут","КодАналит",{"$f":"Отчет!J51","v":"220"},null,null,null,null,null,null,"Код аналитики"]
["Атрибут","ЦелевСред",{"$f":"Отчет!K51","v":99897},null,null,null,null,null,null,"Деятельность с целевыми средствами"]
["Атрибут","ОказУслуг",{"$f":"Отчет!L51","v":3534200.33},null,null,null,null,null,null,"Деятельность по оказанию услуг (работ)"]
["Атрибут","СрВремРасп",{"$f":"Отчет!M51","v":38438.480000000003},null,null,null,null,null,null,"Средства во временном распоряжении"]
["Атрибут","Итого",{"$f":"Отчет!N51","v":3672535.81},"*",null,null,null,null,null,"Итого"]
["###"]
["Элемент","УслугСвяз",null,null,null,null,null,null,null,"Услуги связи"]
["Атрибут","КодАналит",{"$f":"Отчет!J53","v":"221"},null,null,null,null,null,null,"Код аналитики"]
["Атрибут","ЦелевСред",{"$f":"Отчет!K53","v":0},null,null,null,null,null,null,"Деятельность с целевыми средствами"]
["Атрибут","ОказУслуг",{"$f":"Отчет!L53","v":34156.69},null,null,null,null,null,null,"Деятельность по оказанию услуг (работ)"]
["Атрибут","СрВремРасп",{"$f":"Отчет!M53","v":0},null,null,null,null,null,null,"Средства во временном распоряжении"]
["Атрибут","Итого",{"$f":"Отчет!N53","v":34156.69},"*",null,null,null,null,null,"Итого"]
["###"]
["Элемент","ТранспУслуг",null,null,null,null,null,null,null,"Транспортные услуги"]
["Атрибут","КодАналит",{"$f":"Отчет!J54","v":"222"},null,null,null,null,null,null,"Код аналитики"]
["Атрибут","ЦелевСред",{"$f":"Отчет!K54","v":0},null,null,null,null,null,null,"Деятельность с целевыми средствами"]
["Атрибут","ОказУслуг",{"$f":"Отчет!L54","v":4463.1000000000004},null,null,null,null,null,null,"Деятельность по оказанию услуг (работ)"]
["Атрибут","СрВремРасп",{"$f":"Отчет!M54","v":0},null,null,null,null,null,null,"Средства во временном распоряжении"]
["Атрибут","Итого",{"$f":"Отчет!N54","v":4463.1000000000004},"*",null,null,null,null,null,"Итого"]
["###"]
["Элемент","КоммунУслуг",null,null,null,null,null,null,null,"Коммунальные услуги"]
["Атрибут","КодАналит",{"$f":"Отчет!J55","v":"223"},null,null,null,null,null,null,"Код аналитики"]
["Атрибут","ЦелевСред",{"$f":"Отчет!K55","v":0},null,null,null,null,null,null,"Деятельность с целевыми средствами"]
["Атрибут","ОказУслуг",{"$f":"Отчет!L55","v":2965698.59},null,null,null,null,null,null,"Деятельность по оказанию услуг (работ)"]
["Атрибут","СрВремРасп",{"$f":"Отчет!M55","v":0},null,null,null,null,null,null,"Средства во временном распоряжении"]
["Атрибут","Итого",{"$f":"Отчет!N55","v":2965698.59},"*",null,null,null,null,null,"Итого"]
["###"]
["Элемент","АрендПлатИм",null,null,null,null,null,null,null,"Арендная плата за пользование имуществом"]
["Атрибут","КодАналит",{"$f":"Отчет!J56","v":"224"},null,null,null,null,null,null,"Код аналитики"]
["Атрибут","ЦелевСред",{"$f":"Отчет!K56","v":0},null,null,null,null,null,null,"Деятельность с целевыми средствами"]
["Атрибут","ОказУслуг",{"$f":"Отчет!L56","v":0},null,null,null,null,null,null,"Деятельность по оказанию услуг (работ)"]
["Атрибут","СрВремРасп",{"$f":"Отчет!M56","v":0},null,null,null,null,null,null,"Средства во временном распоряжении"]
["Атрибут","Итого",{"$f":"Отчет!N56","v":0},"*",null,null,null,null,null,"Итого"]
["###"]
["Элемент","РабСодержИм",null,null,null,null,null,null,null,"Работы, услуги по содержанию имущества"]
["Атрибут","КодАналит",{"$f":"Отчет!J57","v":"225"},null,null,null,null,null,null,"Код аналитики"]
["Атрибут","ЦелевСред",{"$f":"Отчет!K57","v":99897},null,null,null,null,null,null,"Деятельность с целевыми средствами"]
["Атрибут","ОказУслуг",{"$f":"Отчет!L57","v":114832.52},null,null,null,null,null,null,"Деятельность по оказанию услуг (работ)"]
["Атрибут","СрВремРасп",{"$f":"Отчет!M57","v":0},null,null,null,null,null,null,"Средства во временном распоряжении"]
["Атрибут","Итого",{"$f":"Отчет!N57","v":214729.52},"*",null,null,null,null,null,"Итого"]
["###"]
["Элемент","ПрочРаб",null,null,null,null,null,null,null,"Прочие работы, услуги"]
["Атрибут","КодАналит",{"$f":"Отчет!J58","v":"226"},null,null,null,null,null,null,"Код аналитики"]
["Атрибут","ЦелевСред",{"$f":"Отчет!K58","v":0},null,null,null,null,null,null,"Деятельность с целевыми средствами"]
["Атрибут","ОказУслуг",{"$f":"Отчет!L58","v":415049.43},null,null,null,null,null,null,"Деятельность по оказанию услуг (работ)"]
["Атрибут","СрВремРасп",{"$f":"Отчет!M58","v":38438.480000000003},null,null,null,null,null,null,"Средства во временном распоряжении"]
["Атрибут","Итого",{"$f":"Отчет!N58","v":453487.91},"*",null,null,null,null,null,"Итого"]
["###"]
["###",null,null,null,null,null,null,null,null,"ПриобРаб"]
["Элемент","ОбслДолг",null,null,null,null,null,null,null,"Обслуживание долговых обязательств"]
["Элемент","ОбслДолгВс",null,"*",null,null,null,null,null,"Обслуживание долговых обязательств - всего"]
["Атрибут","КодАналит",{"$f":"Отчет!J59","v":"230"},null,null,null,null,null,null,"Код аналитики"]
["Атрибут","ЦелевСред",{"$f":"Отчет!K59","v":0},null,null,null,null,null,null,"Деятельность с целевыми средствами"]
["Атрибут","ОказУслуг",{"$f":"Отчет!L59","v":0},null,null,null,null,null,null,"Деятельность по оказанию услуг (работ)"]
["Атрибут","СрВремРасп",{"$f":"Отчет!M59","v":0},null,null,null,null,null,null,"Средства во временном распоряжении"]
["Атрибут","Итого",{"$f":"Отчет!N59","v":0},"*",null,null,null,null,null,"Итого"]
["###"]
["Элемент","ОбслДолгРез",null,null,null,null,null,null,null,"Обслуживание долговых обязательств перед резидентами"]
["Атрибут","КодАналит",{"$f":"Отчет!J61","v":"231"},null,null,null,null,null,null,"Код аналитики"]
["Атрибут","ЦелевСред",{"$f":"Отчет!K61","v":0},null,null,null,null,null,null,"Деятельность с целевыми средствами"]
["Атрибут","ОказУслуг",{"$f":"Отчет!L61","v":0},null,null,null,null,null,null,"Деятельность по оказанию услуг (работ)"]
["Атрибут","СрВремРасп",{"$f":"Отчет!M61","v":0},null,null,null,null,null,null,"Средства во временном распоряжении"]
["Атрибут","Итого",{"$f":"Отчет!N61","v":0},"*",null,null,null,null,null,"Итого"]
["###"]
["Элемент","ОбслДолгНеРез",null,null,null,null,null,null,null,"Обслуживание долговых обязательств перед нерезидентами"]
["Атрибут","КодАналит",{"$f":"Отчет!J62","v":"232"},null,null,null,null,null,null,"Код аналитики"]
["Атрибут","ЦелевСред",{"$f":"Отчет!K62","v":0},null,null,null,null,null,null,"Деятельность с целевыми средствами"]
["Атрибут","ОказУслуг",{"$f":"Отчет!L62","v":0},null,null,null,null,null,null,"Деятельность по оказанию услуг (работ)"]
["Атрибут","СрВремРасп",{"$f":"Отчет!M62","v":0},null,null,null,null,null,null,"Средства во временном распоряжении"]
["Атрибут","Итого",{"$f":"Отчет!N62","v":0},"*",null,null,null,null,null,"Итого"]
["###"]
["###",null,null,null,null,null,null,null,null,"ОбслДолг"]
["Элемент","ПеречОрг",null,null,null,null,null,null,null,"Безвозмездные перечисления организациям"]
["Элемент","ПеречОргВс",null,"*",null,null,null,null,null,"Безвозмездные перечисления организациям - всего"]
["Атрибут","КодАналит",{"$f":"Отчет!J63","v":"240"},null,null,null,null,null,null,"Код аналитики"]
["Атрибут","ЦелевСред",{"$f":"Отчет!K63","v":0},null,null,null,null,null,null,"Деятельность с целевыми средствами"]
["Атрибут","ОказУслуг",{"$f":"Отчет!L63","v":0},null,null,null,null,null,null,"Деятельность по оказанию услуг (работ)"]
["Атрибут","СрВремРасп",{"$f":"Отчет!M63","v":0},null,null,null,null,null,null,"Средства во временном распоряжении"]
["Атрибут","Итого",{"$f":"Отчет!N63","v":0},"*",null,null,null,null,null,"Итого"]
["###"]
["Элемент","ПеречГосОрг",null,null,null,null,null,null,null,"Безвозмездные перечисления государственным и муниципальным организациям"]
["Атрибут","КодАналит",{"$f":"Отчет!J66","v":"241"},null,null,null,null,null,null,"Код аналитики"]
["Атрибут","ЦелевСред",{"$f":"Отчет!K66","v":0},null,null,null,null,null,null,"Деятельность с целевыми средствами"]
["Атрибут","ОказУслуг",{"$f":"Отчет!L66","v":0},null,null,null,null,null,null,"Деятельность по оказанию услуг (работ)"]
["Атрибут","СрВремРасп",{"$f":"Отчет!M66","v":0},null,null,null,null,null,null,"Средства во временном распоряжении"]
["Атрибут","Итого",{"$f":"Отчет!N66","v":0},"*",null,null,null,null,null,"Итого"]
["###"]
["Элемент","ПеречКрГосОрг",null,null,null,null,null,null,null,"Безвозмездные перечисления организациям, за исключением государственных и муниципальных организаций"]
["Атрибут","КодАналит",{"$f":"Отчет!J68","v":"242"},null,null,null,null,null,null,"Код аналитики"]
["Атрибут","ЦелевСред",{"$f":"Отчет!K68","v":0},null,null,null,null,null,null,"Деятельность с целевыми средствами"]
["Атрибут","ОказУслуг",{"$f":"Отчет!L68","v":0},null,null,null,null,null,null,"Деятельность по оказанию услуг (работ)"]
["Атрибут","СрВремРасп",{"$f":"Отчет!M68","v":0},null,null,null,null,null,null,"Средства во временном распоряжении"]
["Атрибут","Итого",{"$f":"Отчет!N68","v":0},"*",null,null,null,null,null,"Итого"]
["###"]
["###",null,null,null,null,null,null,null,null,"ПеречОрг"]
["Элемент","ПеречБюдж",null,null,null,null,null,null,null,"Безвозмездные перечисления бюджетам"]
["Элемент","ПеречБюджВс",null,"*",null,null,null,null,null,"Безвозмездные перечисления бюджетам - всего"]
["Атрибут","КодАналит",{"$f":"Отчет!J69","v":"250"},null,null,null,null,null,null,"Код аналитики"]
["Атрибут","ЦелевСред",{"$f":"Отчет!K69","v":0},null,null,null,null,null,null,"Деятельность с целевыми средствами"]
["Атрибут","ОказУслуг",{"$f":"Отчет!L69","v":0},null,null,null,null,null,null,"Деятельность по оказанию услуг (работ)"]
["Атрибут","СрВремРасп",{"$f":"Отчет!M69","v":0},null,null,null,null,null,null,"Средства во временном распоряжении"]
["Атрибут","Итого",{"$f":"Отчет!N69","v":0},"*",null,null,null,null,null,"Итого"]
["###"]
["Элемент","ПеречИно",null,null,null,null,null,null,null,"Перечисления наднациональным организациям и правительствам иностранных государств"]
["Атрибут","КодАналит",{"$f":"Отчет!J72","v":"252"},null,null,null,null,null,null,"Код аналитики"]
["Атрибут","ЦелевСред",{"$f":"Отчет!K72","v":0},null,null,null,null,null,null,"Деятельность с целевыми средствами"]
["Атрибут","ОказУслуг",{"$f":"Отчет!L72","v":0},null,null,null,null,null,null,"Деятельность по оказанию услуг (работ)"]
["Атрибут","СрВремРасп",{"$f":"Отчет!M72","v":0},null,null,null,null,null,null,"Средства во временном распоряжении"]
["Атрибут","Итого",{"$f":"Отчет!N72","v":0},"*",null,null,null,null,null,"Итого"]
["###"]
["Элемент","ПеречМО",null,null,null,null,null,null,null,"Перечисления международным организациям"]
["Атрибут","КодАналит",{"$f":"Отчет!J73","v":"253"},null,null,null,null,null,null,"Код аналитики"]
["Атрибут","ЦелевСред",{"$f":"Отчет!K73","v":0},null,null,null,null,null,null,"Деятельность с целевыми средствами"]
["Атрибут","ОказУслуг",{"$f":"Отчет!L73","v":0},null,null,null,null,null,null,"Деятельность по оказанию услуг (работ)"]
["Атрибут","СрВремРасп",{"$f":"Отчет!M73","v":0},null,null,null,null,null,null,"Средства во временном распоряжении"]
["Атрибут","Итого",{"$f":"Отчет!N73","v":0},"*",null,null,null,null,null,"Итого"]
["###"]
["###",null,null,null,null,null,null,null,null,"ПеречБюдж"]
["Элемент","СоцОбесп",null,null,null,null,null,null,null,"Социальное обеспечение"]
["Элемент","СоцОбеспВс",null,"*",null,null,null,null,null,"Социальное обеспечение - всего"]
["Атрибут","КодАналит",{"$f":"Отчет!J74","v":"260"},null,null,null,null,null,null,"Код аналитики"]
["Атрибут","ЦелевСред",{"$f":"Отчет!K74","v":0},null,null,null,null,null,null,"Деятельность с целевыми средствами"]
["Атрибут","ОказУслуг",{"$f":"Отчет!L74","v":0},null,null,null,null,null,null,"Деятельность по оказанию услуг (работ)"]
["Атрибут","СрВремРасп",{"$f":"Отчет!M74","v":0},null,null,null,null,null,null,"Средства во временном распоряжении"]
["Атрибут","Итого",{"$f":"Отчет!N74","v":0},"*",null,null,null,null,null,"Итого"]
["###"]
["Элемент","ПомНасел",null,null,null,null,null,null,null,"Пособия по социальной помощи населению"]
["Атрибут","КодАналит",{"$f":"Отчет!J76","v":"262"},null,null,null,null,null,null,"Код аналитики"]
["Атрибут","ЦелевСред",{"$f":"Отчет!K76","v":0},null,null,null,null,null,null,"Деятельность с целевыми средствами"]
["Атрибут","ОказУслуг",{"$f":"Отчет!L76","v":0},null,null,null,null,null,null,"Деятельность по оказанию услуг (работ)"]
["Атрибут","СрВремРасп",{"$f":"Отчет!M76","v":0},null,null,null,null,null,null,"Средства во временном распоряжении"]
["Атрибут","Итого",{"$f":"Отчет!N76","v":0},"*",null,null,null,null,null,"Итого"]
["###"]
["Элемент","ПособГосУпр",null,null,null,null,null,null,null,"Пенсии, пособия, выплачиваемые организациями сектора государственного управления"]
["Атрибут","КодАналит",{"$f":"Отчет!J78","v":"263"},null,null,null,null,null,null,"Код аналитики"]
["Атрибут","ЦелевСред",{"$f":"Отчет!K78","v":0},null,null,null,null,null,null,"Деятельность с целевыми средствами"]
["Атрибут","ОказУслуг",{"$f":"Отчет!L78","v":0},null,null,null,null,null,null,"Деятельность по оказанию услуг (работ)"]
["Атрибут","СрВремРасп",{"$f":"Отчет!M78","v":0},null,null,null,null,null,null,"Средства во временном распоряжении"]
["Атрибут","Итого",{"$f":"Отчет!N78","v":0},"*",null,null,null,null,null,"Итого"]
["###"]
["###",null,null,null,null,null,null,null,null,"СоцОбесп"]
["Элемент","РасхПроч",null,null,null,null,null,null,null,"Прочие расходы"]
["Атрибут","КодАналит",{"$f":"Отчет!J79","v":"290"},null,null,null,null,null,null,"Код аналитики"]
["Атрибут","ЦелевСред",{"$f":"Отчет!K79","v":0},null,null,null,null,null,null,"Деятельность с целевыми средствами"]
["Атрибут","ОказУслуг",{"$f":"Отчет!L79","v":881105.75},null,null,null,null,null,null,"Деятельность по оказанию услуг (работ)"]
["Атрибут","СрВремРасп",{"$f":"Отчет!M79","v":0},null,null,null,null,null,null,"Средства во временном распоряжении"]
["Атрибут","Итого",{"$f":"Отчет!N79","v":881105.75},"*",null,null,null,null,null,"Итого"]
["###",null,null,null,null,null,null,null,null,"РасхПроч"]
["Элемент","РасхОпАкт",null,null,null,null,null,null,null,"Расходы по операциям с активами"]
["Элемент","РасхОпАктВс",null,"*",null,null,null,null,null,"Расходы по операциям с активами - всего"]
["Атрибут","КодАналит",{"$f":"Отчет!J85","v":"270"},null,null,null,null,null,null,"Код аналитики"]
["Атрибут","ЦелевСред",{"$f":"Отчет!K85","v":480368.13},null,null,null,null,null,null,"Деятельность с целевыми средствами"]
["Атрибут","ОказУслуг",{"$f":"Отчет!L85","v":2643138.9500000002},null,null,null,null,null,null,"Деятельность по оказанию услуг (работ)"]
["Атрибут","СрВремРасп",{"$f":"Отчет!M85","v":1469766.96},null,null,null,null,null,null,"Средства во временном распоряжении"]
["Атрибут","Итого",{"$f":"Отчет!N85","v":4593274.04},"*",null,null,null,null,null,"Итого"]
["###"]
["Элемент","АмортОСиНМА",null,null,null,null,null,null,null,"Амортизация основных средств и нематериальных активов"]
["Атрибут","КодАналит",{"$f":"Отчет!J87","v":"271"},null,null,null,null,null,null,"Код аналитики"]
["Атрибут","ЦелевСред",{"$f":"Отчет!K87","v":0},null,null,null,null,null,null,"Деятельность с целевыми средствами"]
["Атрибут","ОказУслуг",{"$f":"Отчет!L87","v":2643138.9500000002},null,null,null,null,null,null,"Деятельность по оказанию услуг (работ)"]
["Атрибут","СрВремРасп",{"$f":"Отчет!M87","v":13300},null,null,null,null,null,null,"Средства во временном распоряжении"]
["Атрибут","Итого",{"$f":"Отчет!N87","v":2656438.9500000002},"*",null,null,null,null,null,"Итого"]
["###"]
["Элемент","РасхМатЗ",null,null,null,null,null,null,null,"Расходование материальных запасов"]
["Атрибут","КодАналит",{"$f":"Отчет!J88","v":"272"},null,null,null,null,null,null,"Код аналитики"]
["Атрибут","ЦелевСред",{"$f":"Отчет!K88","v":480368.13},null,null,null,null,null,null,"Деятельность с целевыми средствами"]
["Атрибут","ОказУслуг",{"$f":"Отчет!L88","v":0},null,null,null,null,null,null,"Деятельность по оказанию услуг (работ)"]
["Атрибут","СрВремРасп",{"$f":"Отчет!M88","v":1456466.96},null,null,null,null,null,null,"Средства во временном распоряжении"]
["Атрибут","Итого",{"$f":"Отчет!N88","v":1936835.09},"*",null,null,null,null,null,"Итого"]
["###"]
["Элемент","ЧрРасхОпАкт",null,null,null,null,null,null,null,"Чрезвычайные расходы по операциям с активами"]
["Атрибут","КодАналит",{"$f":"Отчет!J89","v":"273"},null,null,null,null,null,null,"Код аналитики"]
["Атрибут","ЦелевСред",{"$f":"Отчет!K89","v":0},null,null,null,null,null,null,"Деятельность с целевыми средствами"]
["Атрибут","ОказУслуг",{"$f":"Отчет!L89","v":0},null,null,null,null,null,null,"Деятельность по оказанию услуг (работ)"]
["Атрибут","СрВремРасп",{"$f":"Отчет!M89","v":0},null,null,null,null,null,null,"Средства во временном распоряжении"]
["Атрибут","Итого",{"$f":"Отчет!N89","v":0},"*",null,null,null,null,null,"Итого"]
["###"]
["###",null,null,null,null,null,null,null,null,"РасхОпАкт"]
["Элемент","РасхБудущПер",null,"*",null,null,null,null,null,"Расходы будущих периодов"]
["Атрибут","КодАналит",{"$f":"Отчет!J90","v":0},null,null,null,null,null,null,"Код аналитики"]
["Атрибут","ЦелевСред",{"$f":"Отчет!K90","v":0},null,null,null,null,null,null,"Деятельность с целевыми средствами"]
["Атрибут","ОказУслуг",{"$f":"Отчет!L90","v":0},null,null,null,null,null,null,"Деятельность по оказанию услуг (работ)"]
["Атрибут","СрВремРасп",{"$f":"Отчет!M90","v":0},null,null,null,null,null,null,"Средства во временном распоряжении"]
["Атрибут","Итого",{"$f":"Отчет!N90","v":0},"*",null,null,null,null,null,"Итого"]
["###",null,null,null,null,null,null,null,null,"РасхБудущПер"]
["###",null,null,null,null,null,null,null,null,"Расход"]
["Элемент","ЧистОперРез",null,null,null,null,null,null,null,"Чистый операционный результат "]
["Элемент","ЧистОперРезВс",null,"*",null,null,null,null,null,"Чистый операционный результат - всего"]
["Атрибут","КодАналит",{"$f":"Отчет!J91","v":0},null,null,null,null,null,null,"Код аналитики"]
["Атрибут","ЦелевСред",{"$f":"Отчет!K91","v":-1518.07},null,null,null,null,null,null,"Деятельность с целевыми средствами"]
["Атрибут","ОказУслуг",{"$f":"Отчет!L91","v":-3446436.57},null,null,null,null,null,null,"Деятельность по оказанию услуг (работ)"]
["Атрибут","СрВремРасп",{"$f":"Отчет!M91","v":-1225.95},null,null,null,null,null,null,"Средства во временном распоряжении"]
["Атрибут","Итого",{"$f":"Отчет!N91","v":-3449180.59},"*",null,null,null,null,null,"Итого"]
["###"]
["Элемент","ОперРезДоНал",null,null,null,null,null,null,null,"Операционный результат до налогообложения"]
["Атрибут","КодАналит",{"$f":"Отчет!J92","v":0},null,null,null,null,null,null,"Код аналитики"]
["Атрибут","ЦелевСред",{"$f":"Отчет!K92","v":-1518.07},null,null,null,null,null,null,"Деятельность с целевыми средствами"]
["Атрибут","ОказУслуг",{"$f":"Отчет!L92","v":-3446436.57},null,null,null,null,null,null,"Деятельность по оказанию услуг (работ)"]
["Атрибут","СрВремРасп",{"$f":"Отчет!M92","v":6947.05},null,null,null,null,null,null,"Средства во временном распоряжении"]
["Атрибут","Итого",{"$f":"Отчет!N92","v":-3441007.59},"*",null,null,null,null,null,"Итого"]
["###"]
["Элемент","НалогПриб",null,null,null,null,null,null,null,"Налог на прибыль"]
["Атрибут","КодАналит",{"$f":"Отчет!J93","v":0},null,null,null,null,null,null,"Код аналитики"]
["Атрибут","ЦелевСред",{"$f":"Отчет!K93","v":0},null,null,null,null,null,null,"Деятельность с целевыми средствами"]
["Атрибут","ОказУслуг",{"$f":"Отчет!L93","v":0},null,null,null,null,null,null,"Деятельность по оказанию услуг (работ)"]
["Атрибут","СрВремРасп",{"$f":"Отчет!M93","v":8173},null,null,null,null,null,null,"Средства во временном распоряжении"]
["Атрибут","Итого",{"$f":"Отчет!N93","v":8173},"*",null,null,null,null,null,"Итого"]
["###"]
["Элемент","ОперНеФА",null,null,null,null,null,null,null,"Операции с нефинансовыми активами"]
["Элемент","ОперНеФАВс",null,"*",null,null,null,null,null,"Операции с нефинансовыми активами - всего"]
["Атрибут","КодАналит",{"$f":"Отчет!J95","v":0},null,null,null,null,null,null,"Код аналитики"]
["Атрибут","ЦелевСред",{"$f":"Отчет!K95","v":3913},null,null,null,null,null,null,"Деятельность с целевыми средствами"]
["Атрибут","ОказУслуг",{"$f":"Отчет!L95","v":-2284538.9500000002},null,null,null,null,null,null,"Деятельность по оказанию услуг (работ)"]
["Атрибут","СрВремРасп",{"$f":"Отчет!M95","v":7177.25},null,null,null,null,null,null,"Средства во временном распоряжении"]
["Атрибут","Итого",{"$f":"Отчет!N95","v":-2273448.7000000002},"*",null,null,null,null,null,"Итого"]
["###"]
["Элемент","ЧистПостОС",null,"*",null,null,null,null,null,"Чистое поступление основных средств"]
["Элемент","ЧистПоступ",null,null,null,null,null,null,null,"Чистое поступление - всего"]
["Атрибут","КодАналит",{"$f":"Отчет!J96","v":0},null,null,null,null,null,null,"Код аналитики"]
["Атрибут","ЦелевСред",{"$f":"Отчет!K96","v":0},null,null,null,null,null,null,"Деятельность с целевыми средствами"]
["Атрибут","ОказУслуг",{"$f":"Отчет!L96","v":-2284538.9500000002},null,null,null,null,null,null,"Деятельность по оказанию услуг (работ)"]
["Атрибут","СрВремРасп",{"$f":"Отчет!M96","v":0},null,null,null,null,null,null,"Средства во временном распоряжении"]
["Атрибут","Итого",{"$f":"Отчет!N96","v":-2284538.9500000002},"*",null,null,null,null,null,"Итого"]
["###"]
["Элемент","УвелСтоим",null,null,null,null,null,null,null,"Увеличение стоимости "]
["Атрибут","КодАналит",{"$f":"Отчет!J98","v":"310"},null,null,null,null,null,null,"Код аналитики"]
["Атрибут","ЦелевСред",{"$f":"Отчет!K98","v":0},null,null,null,null,null,null,"Деятельность с целевыми средствами"]
["Атрибут","ОказУслуг",{"$f":"Отчет!L98","v":364550},null,null,null,null,null,null,"Деятельность по оказанию услуг (работ)"]
["Атрибут","СрВремРасп",{"$f":"Отчет!M98","v":31500},null,null,null,null,null,null,"Средства во временном распоряжении"]
["Атрибут","Итого",{"$f":"Отчет!N98","v":396050},"*",null,null,null,null,null,"Итого"]
["###"]
["Элемент","УменСтоим",null,null,null,null,null,null,null,"Уменьшение стоимости"]
["Атрибут","КодАналит",{"$f":"Отчет!J99","v":"410"},null,null,null,null,null,null,"Код аналитики"]
["Атрибут","ЦелевСред",{"$f":"Отчет!K99","v":0},null,null,null,null,null,null,"Деятельность с целевыми средствами"]
["Атрибут","ОказУслуг",{"$f":"Отчет!L99","v":2649088.9500000002},null,null,null,null,null,null,"Деятельность по оказанию услуг (работ)"]
["Атрибут","СрВремРасп",{"$f":"Отчет!M99","v":31500},null,null,null,null,null,null,"Средства во временном распоряжении"]
["Атрибут","Итого",{"$f":"Отчет!N99","v":2680588.9500000002},"*",null,null,null,null,null,"Итого"]
["###"]
["###"]
["Элемент","ЧистПостНМА",null,"*",null,null,null,null,null,"Чистое поступление нематериальных активов"]
["Элемент","ЧистПоступ",null,null,null,null,null,null,null,"Чистое поступление - всего"]
["Атрибут","КодАналит",{"$f":"Отчет!J100","v":0},null,null,null,null,null,null,"Код аналитики"]
["Атрибут","ЦелевСред",{"$f":"Отчет!K100","v":0},null,null,null,null,null,null,"Деятельность с целевыми средствами"]
["Атрибут","ОказУслуг",{"$f":"Отчет!L100","v":0},null,null,null,null,null,null,"Деятельность по оказанию услуг (работ)"]
["Атрибут","СрВремРасп",{"$f":"Отчет!M100","v":0},null,null,null,null,null,null,"Средства во временном распоряжении"]
["Атрибут","Итого",{"$f":"Отчет!N100","v":0},"*",null,null,null,null,null,"Итого"]
["###"]
["Элемент","УвелСтоим",null,null,null,null,null,null,null,"Увеличение стоимости "]
["Атрибут","КодАналит",{"$f":"Отчет!J102","v":"320"},null,null,null,null,null,null,"Код аналитики"]
["Атрибут","ЦелевСред",{"$f":"Отчет!K102","v":0},null,null,null,null,null,null,"Деятельность с целевыми средствами"]
["Атрибут","ОказУслуг",{"$f":"Отчет!L102","v":0},null,null,null,null,null,null,"Деятельность по оказанию услуг (работ)"]
["Атрибут","СрВремРасп",{"$f":"Отчет!M102","v":0},null,null,null,null,null,null,"Средства во временном распоряжении"]
["Атрибут","Итого",{"$f":"Отчет!N102","v":0},"*",null,null,null,null,null,"Итого"]
["###"]
["Элемент","УменСтоим",null,null,null,null,null,null,null,"Уменьшение стоимости"]
["Атрибут","КодАналит",{"$f":"Отчет!J103","v":"420"},null,null,null,null,null,null,"Код аналитики"]
["Атрибут","ЦелевСред",{"$f":"Отчет!K103","v":0},null,null,null,null,null,null,"Деятельность с целевыми средствами"]
["Атрибут","ОказУслуг",{"$f":"Отчет!L103","v":0},null,null,null,null,null,null,"Деятельность по оказанию услуг (работ)"]
["Атрибут","СрВремРасп",{"$f":"Отчет!M103","v":0},null,null,null,null,null,null,"Средства во временном распоряжении"]
["Атрибут","Итого",{"$f":"Отчет!N103","v":0},"*",null,null,null,null,null,"Итого"]
["###"]
["###"]
["Элемент","ЧистПостНПрА",null,"*",null,null,null,null,null,"Чистое поступление непроизведенных активов"]
["Элемент","ЧистПоступ",null,null,null,null,null,null,null,"Чистое поступление - всего"]
["Атрибут","КодАналит",{"$f":"Отчет!J104","v":0},null,null,null,null,null,null,"Код аналитики"]
["Атрибут","ЦелевСред",{"$f":"Отчет!K104","v":0},null,null,null,null,null,null,"Деятельность с целевыми средствами"]
["Атрибут","ОказУслуг",{"$f":"Отчет!L104","v":0},null,null,null,null,null,null,"Деятельность по оказанию услуг (работ)"]
["Атрибут","СрВремРасп",{"$f":"Отчет!M104","v":0},null,null,null,null,null,null,"Средства во временном распоряжении"]
["Атрибут","Итого",{"$f":"Отчет!N104","v":0},"*",null,null,null,null,null,"Итого"]
["###"]
["Элемент","УвелСтоим",null,null,null,null,null,null,null,"Увеличение стоимости "]
["Атрибут","КодАналит",{"$f":"Отчет!J106","v":"330"},null,null,null,null,null,null,"Код аналитики"]
["Атрибут","ЦелевСред",{"$f":"Отчет!K106","v":0},null,null,null,null,null,null,"Деятельность с целевыми средствами"]
["Атрибут","ОказУслуг",{"$f":"Отчет!L106","v":0},null,null,null,null,null,null,"Деятельность по оказанию услуг (работ)"]
["Атрибут","СрВремРасп",{"$f":"Отчет!M106","v":0},null,null,null,null,null,null,"Средства во временном распоряжении"]
["Атрибут","Итого",{"$f":"Отчет!N106","v":0},"*",null,null,null,null,null,"Итого"]
["###"]
["Элемент","УменСтоим",null,null,null,null,null,null,null,"Уменьшение стоимости"]
["Атрибут","КодАналит",{"$f":"Отчет!J107","v":"430"},null,null,null,null,null,null,"Код аналитики"]
["Атрибут","ЦелевСред",{"$f":"Отчет!K107","v":0},null,null,null,null,null,null,"Деятельность с целевыми средствами"]
["Атрибут","ОказУслуг",{"$f":"Отчет!L107","v":0},null,null,null,null,null,null,"Деятельность по оказанию услуг (работ)"]
["Атрибут","СрВремРасп",{"$f":"Отчет!M107","v":0},null,null,null,null,null,null,"Средства во временном распоряжении"]
["Атрибут","Итого",{"$f":"Отчет!N107","v":0},"*",null,null,null,null,null,"Итого"]
["###"]
["###"]
["Элемент","ЧистПостМатЗ",null,"*",null,null,null,null,null,"Чистое поступление материальных запасов"]
["Элемент","ЧистПоступ",null,null,null,null,null,null,null,"Чистое поступление - всего"]
["Атрибут","КодАналит",{"$f":"Отчет!J108","v":0},null,null,null,null,null,null,"Код аналитики"]
["Атрибут","ЦелевСред",{"$f":"Отчет!K108","v":3913},null,null,null,null,null,null,"Деятельность с целевыми средствами"]
["Атрибут","ОказУслуг",{"$f":"Отчет!L108","v":0},null,null,null,null,null,null,"Деятельность по оказанию услуг (работ)"]
["Атрибут","СрВремРасп",{"$f":"Отчет!M108","v":7177.25},null,null,null,null,null,null,"Средства во временном распоряжении"]
["Атрибут","Итого",{"$f":"Отчет!N108","v":11090.25},"*",null,null,null,null,null,"Итого"]
["###"]
["Элемент","УвелСтоим",null,null,null,null,null,null,null,"Увеличение стоимости "]
["Атрибут","КодАналит",{"$f":"Отчет!J110","v":"340"},null,null,null,null,null,null,"Код аналитики"]
["Атрибут","ЦелевСред",{"$f":"Отчет!K110","v":484281.15},null,null,null,null,null,null,"Деятельность с целевыми средствами"]
["Атрибут","ОказУслуг",{"$f":"Отчет!L110","v":0},null,null,null,null,null,null,"Деятельность по оказанию услуг (работ)"]
["Атрибут","СрВремРасп",{"$f":"Отчет!M110","v":1463759.28},null,null,null,null,null,null,"Средства во временном распоряжении"]
["Атрибут","Итого",{"$f":"Отчет!N110","v":1948040.43},"*",null,null,null,null,null,"Итого"]
["###"]
["Элемент","УменСтоим",null,null,null,null,null,null,null,"Уменьшение стоимости"]
["Атрибут","КодАналит",{"$f":"Отчет!J111","v":"440"},null,null,null,null,null,null,"Код аналитики"]
["Атрибут","ЦелевСред",{"$f":"Отчет!K111","v":480368.15},null,null,null,null,null,null,"Деятельность с целевыми средствами"]
["Атрибут","ОказУслуг",{"$f":"Отчет!L111","v":0},null,null,null,null,null,null,"Деятельность по оказанию услуг (работ)"]
["Атрибут","СрВремРасп",{"$f":"Отчет!M111","v":1456582.03},null,null,null,null,null,null,"Средства во временном распоряжении"]
["Атрибут","Итого",{"$f":"Отчет!N111","v":1936950.18},"*",null,null,null,null,null,"Итого"]
["###"]
["###"]
["Элемент","ЧистИзмЗатр",null,"*",null,null,null,null,null,"Чистое изменение затрат на изготовление готовой продукции (работ, услуг)"]
["Элемент","ЧистИзмЗатрВс",null,null,null,null,null,null,null,"Чистое изменение затрат на изготовление готовой продукции (работ, услуг) - всего"]
["Атрибут","КодАналит",{"$f":"Отчет!J112","v":0},null,null,null,null,null,null,"Код аналитики"]
["Атрибут","ЦелевСред",{"$f":"Отчет!K112","v":0},null,null,null,null,null,null,"Деятельность с целевыми средствами"]
["Атрибут","ОказУслуг",{"$f":"Отчет!L112","v":0},null,null,null,null,null,null,"Деятельность по оказанию услуг (работ)"]
["Атрибут","СрВремРасп",{"$f":"Отчет!M112","v":0},null,null,null,null,null,null,"Средства во временном распоряжении"]
["Атрибут","Итого",{"$f":"Отчет!N112","v":0},"*",null,null,null,null,null,"Итого"]
["###"]
["Элемент","УвелЗатр",null,null,null,null,null,null,null,"Увеличение затрат "]
["Атрибут","ЦелевСред",{"$f":"Отчет!K114","v":0},null,null,null,null,null,null,"Деятельность с целевыми средствами"]
["Атрибут","ОказУслуг",{"$f":"Отчет!L114","v":0},null,null,null,null,null,null,"Деятельность по оказанию услуг (работ)"]
["Атрибут","СрВремРасп",{"$f":"Отчет!M114","v":1540608.48},null,null,null,null,null,null,"Средства во временном распоряжении"]
["Атрибут","Итого",{"$f":"Отчет!N114","v":1540608.48},"*",null,null,null,null,null,"Итого"]
["###"]
["Элемент","УменЗатр",null,null,null,null,null,null,null,"Уменьшение затрат "]
["Атрибут","ЦелевСред",{"$f":"Отчет!K115","v":0},null,null,null,null,null,null,"Деятельность с целевыми средствами"]
["Атрибут","ОказУслуг",{"$f":"Отчет!L115","v":0},null,null,null,null,null,null,"Деятельность по оказанию услуг (работ)"]
["Атрибут","СрВремРасп",{"$f":"Отчет!M115","v":1540608.48},null,null,null,null,null,null,"Средства во временном распоряжении"]
["Атрибут","Итого",{"$f":"Отчет!N115","v":1540608.48},"*",null,null,null,null,null,"Итого"]
["###"]
["###"]
["###"]
["Элемент","ОперФинАктОб",null,null,null,null,null,null,null,"Операции с финансовыми активами и обязательствами"]
["Элемент","ОперФинАктОбВс",null,"*",null,null,null,null,null,"Операции с финансовыми активами и обязательствами - всего"]
["Атрибут","КодАналит",{"$f":"Отчет!J121","v":0},null,null,null,null,null,null,"Код аналитики"]
["Атрибут","ЦелевСред",{"$f":"Отчет!K121","v":-5431.07},null,null,null,null,null,null,"Деятельность с целевыми средствами"]
["Атрибут","ОказУслуг",{"$f":"Отчет!L121","v":-1161897.6200000001},null,null,null,null,null,null,"Деятельность по оказанию услуг (работ)"]
["Атрибут","СрВремРасп",{"$f":"Отчет!M121","v":-8403.2000000000007},null,null,null,null,null,null,"Средства во временном распоряжении"]
["Атрибут","Итого",{"$f":"Отчет!N121","v":-1175731.8899999999},"*",null,null,null,null,null,"Итого"]
["###"]
["Элемент","ОперФинАкт",null,"*",null,null,null,null,null,"Операции с финансовыми активами"]
["Элемент","ОперФинАктВс",null,"*",null,null,null,null,null,"Операции с финансовыми активами - всего"]
["Атрибут","КодАналит",{"$f":"Отчет!J122","v":0},null,null,null,null,null,null,"Код аналитики"]
["Атрибут","ЦелевСред",{"$f":"Отчет!K122","v":0},null,null,null,null,null,null,"Деятельность с целевыми средствами"]
["Атрибут","ОказУслуг",{"$f":"Отчет!L122","v":-314472.73},null,null,null,null,null,null,"Деятельность по оказанию услуг (работ)"]
["Атрибут","СрВремРасп",{"$f":"Отчет!M122","v":77799.16},null,null,null,null,null,null,"Средства во временном распоряжении"]
["Атрибут","Итого",{"$f":"Отчет!N122","v":-236673.57},"*",null,null,null,null,null,"Итого"]
["###"]
["Элемент","ЧистПостСрУчр",null,"*",null,null,null,null,null,"Чистое поступление средств учреждений"]
["Элемент","ЧистПостСрУчрВс",null,null,null,null,null,null,null,"Чистое поступление средств учреждений - всего"]
["Атрибут","КодАналит",{"$f":"Отчет!J123","v":0},null,null,null,null,null,null,"Код аналитики"]
["Атрибут","ЦелевСред",{"$f":"Отчет!K123","v":0},null,null,null,null,null,null,"Деятельность с целевыми средствами"]
["Атрибут","ОказУслуг",{"$f":"Отчет!L123","v":0},null,null,null,null,null,null,"Деятельность по оказанию услуг (работ)"]
["Атрибут","СрВремРасп",{"$f":"Отчет!M123","v":68001.350000000006},null,null,null,null,null,null,"Средства во временном распоряжении"]
["Атрибут","Итого",{"$f":"Отчет!N123","v":68001.350000000006},"*",null,null,null,null,null,"Итого"]
["###"]
["Элемент","ПостСред",null,null,null,null,null,null,null,"Поступление средств"]
["Атрибут","КодАналит",{"$f":"Отчет!J125","v":"510"},null,null,null,null,null,null,"Код аналитики"]
["Атрибут","ЦелевСред",{"$f":"Отчет!K125","v":578747.06000000006},null,null,null,null,null,null,"Деятельность с целевыми средствами"]
["Атрибут","ОказУслуг",{"$f":"Отчет!L125","v":23989642.710000001},null,null,null,null,null,null,"Деятельность по оказанию услуг (работ)"]
["Атрибут","СрВремРасп",{"$f":"Отчет!M125","v":1578362.2},null,null,null,null,null,null,"Средства во временном распоряжении"]
["Атрибут","Итого",{"$f":"Отчет!N125","v":26146751.969999999},"*",null,null,null,null,null,"Итого"]
["###"]
["Элемент","ВыбытСред",null,null,null,null,null,null,null,"Выбытие средств"]
["Атрибут","КодАналит",{"$f":"Отчет!J126","v":"610"},null,null,null,null,null,null,"Код аналитики"]
["Атрибут","ЦелевСред",{"$f":"Отчет!K126","v":578747.06000000006},null,null,null,null,null,null,"Деятельность с целевыми средствами"]
["Атрибут","ОказУслуг",{"$f":"Отчет!L126","v":23989642.710000001},null,null,null,null,null,null,"Деятельность по оказанию услуг (работ)"]
["Атрибут","СрВремРасп",{"$f":"Отчет!M126","v":1510360.85},null,null,null,null,null,null,"Средства во временном распоряжении"]
["Атрибут","Итого",{"$f":"Отчет!N126","v":26078750.620000001},"*",null,null,null,null,null,"Итого"]
["###"]
["###"]
["Элемент","ЧистПостЦБ",null,"*",null,null,null,null,null,"Чистое поступление ценных бумаг, кроме акций"]
["Элемент","ЧистПоступ",null,null,null,null,null,null,null,"Чистое поступление - всего"]
["Атрибут","КодАналит",{"$f":"Отчет!J127","v":0},null,null,null,null,null,null,"Код аналитики"]
["Атрибут","ЦелевСред",{"$f":"Отчет!K127","v":0},null,null,null,null,null,null,"Деятельность с целевыми средствами"]
["Атрибут","ОказУслуг",{"$f":"Отчет!L127","v":0},null,null,null,null,null,null,"Деятельность по оказанию услуг (работ)"]
["Атрибут","СрВремРасп",{"$f":"Отчет!M127","v":0},null,null,null,null,null,null,"Средства во временном распоряжении"]
["Атрибут","Итого",{"$f":"Отчет!N127","v":0},"*",null,null,null,null,null,"Итого"]
["###"]
["Элемент","УвелСтоим",null,null,null,null,null,null,null,"Увеличение стоимости "]
["Атрибут","КодАналит",{"$f":"Отчет!J129","v":"520"},null,null,null,null,null,null,"Код аналитики"]
["Атрибут","ЦелевСред",{"$f":"Отчет!K129","v":0},null,null,null,null,null,null,"Деятельность с целевыми средствами"]
["Атрибут","ОказУслуг",{"$f":"Отчет!L129","v":0},null,null,null,null,null,null,"Деятельность по оказанию услуг (работ)"]
["Атрибут","СрВремРасп",{"$f":"Отчет!M129","v":0},null,null,null,null,null,null,"Средства во временном распоряжении"]
["Атрибут","Итого",{"$f":"Отчет!N148","v":0},"*",null,null,null,null,null,"Итого"]
["###"]
["Элемент","УменСтоим",null,null,null,null,null,null,null,"Уменьшение стоимости"]
["Атрибут","КодАналит",{"$f":"Отчет!J130","v":"620"},null,null,null,null,null,null,"Код аналитики"]
["Атрибут","ЦелевСред",{"$f":"Отчет!K130","v":0},null,null,null,null,null,null,"Деятельность с целевыми средствами"]
["Атрибут","ОказУслуг",{"$f":"Отчет!L130","v":0},null,null,null,null,null,null,"Деятельность по оказанию услуг (работ)"]
["Атрибут","СрВремРасп",{"$f":"Отчет!M130","v":0},null,null,null,null,null,null,"Средства во временном распоряжении"]
["Атрибут","Итого",{"$f":"Отчет!N130","v":0},"*",null,null,null,null,null,"Итого"]
["###"]
["###"]
["Элемент","ЧистПостАкц",null,"*",null,null,null,null,null,"Чистое поступление акций и иных форм участия в капитале"]
["Элемент","ЧистПоступ",null,null,null,null,null,null,null,"Чистое поступление - всего"]
["Атрибут","КодАналит",{"$f":"Отчет!J131","v":0},null,null,null,null,null,null,"Код аналитики"]
["Атрибут","ЦелевСред",{"$f":"Отчет!K131","v":0},null,null,null,null,null,null,"Деятельность с целевыми средствами"]
["Атрибут","ОказУслуг",{"$f":"Отчет!L131","v":0},null,null,null,null,null,null,"Деятельность по оказанию услуг (работ)"]
["Атрибут","СрВремРасп",{"$f":"Отчет!M131","v":0},null,null,null,null,null,null,"Средства во временном распоряжении"]
["Атрибут","Итого",{"$f":"Отчет!N131","v":0},"*",null,null,null,null,null,"Итого"]
["###"]
["Элемент","УвелСтоим",null,null,null,null,null,null,null,"Увеличение стоимости "]
["Атрибут","КодАналит",{"$f":"Отчет!J133","v":"530"},null,null,null,null,null,null,"Код аналитики"]
["Атрибут","ЦелевСред",{"$f":"Отчет!K133","v":0},null,null,null,null,null,null,"Деятельность с целевыми средствами"]
["Атрибут","ОказУслуг",{"$f":"Отчет!L133","v":0},null,null,null,null,null,null,"Деятельность по оказанию услуг (работ)"]
["Атрибут","СрВремРасп",{"$f":"Отчет!M133","v":0},null,null,null,null,null,null,"Средства во временном распоряжении"]
["Атрибут","Итого",{"$f":"Отчет!N133","v":0},"*",null,null,null,null,null,"Итого"]
["###"]
["Элемент","УменСтоим",null,null,null,null,null,null,null,"Уменьшение стоимости"]
["Атрибут","КодАналит",{"$f":"Отчет!J134","v":"630"},null,null,null,null,null,null,"Код аналитики"]
["Атрибут","ЦелевСред",{"$f":"Отчет!K134","v":0},null,null,null,null,null,null,"Деятельность с целевыми средствами"]
["Атрибут","ОказУслуг",{"$f":"Отчет!L134","v":0},null,null,null,null,null,null,"Деятельность по оказанию услуг (работ)"]
["Атрибут","СрВремРасп",{"$f":"Отчет!M134","v":0},null,null,null,null,null,null,"Средства во временном распоряжении"]
["Атрибут","Итого",{"$f":"Отчет!N134","v":0},"*",null,null,null,null,null,"Итого"]
["###"]
["###"]
["Элемент","ЧистПредЗайм",null,"*",null,null,null,null,null,"Чистое предоставление займов (ссуд)"]
["Элемент","ЧистПредЗаймВс",null,null,null,null,null,null,null,"Чистое предоставление займов (ссуд) - всего"]
["Атрибут","КодАналит",{"$f":"Отчет!J135","v":0},null,null,null,null,null,null,"Код аналитики"]
["Атрибут","ЦелевСред",{"$f":"Отчет!K135","v":0},null,null,null,null,null,null,"Деятельность с целевыми средствами"]
["Атрибут","ОказУслуг",{"$f":"Отчет!L135","v":0},null,null,null,null,null,null,"Деятельность по оказанию услуг (работ)"]
["Атрибут","СрВремРасп",{"$f":"Отчет!M135","v":0},null,null,null,null,null,null,"Средства во временном распоряжении"]
["Атрибут","Итого",{"$f":"Отчет!N135","v":0},"*",null,null,null,null,null,"Итого"]
["###"]
["Элемент","УвелЗадолжЗайм",null,null,null,null,null,null,null,"Увеличение задолженности по предоставленным займам (ссудам)"]
["Атрибут","КодАналит",{"$f":"Отчет!J137","v":"540"},null,null,null,null,null,null,"Код аналитики"]
["Атрибут","ЦелевСред",{"$f":"Отчет!K137","v":0},null,null,null,null,null,null,"Деятельность с целевыми средствами"]
["Атрибут","ОказУслуг",{"$f":"Отчет!L137","v":0},null,null,null,null,null,null,"Деятельность по оказанию услуг (работ)"]
["Атрибут","СрВремРасп",{"$f":"Отчет!M137","v":0},null,null,null,null,null,null,"Средства во временном распоряжении"]
["Атрибут","Итого",{"$f":"Отчет!N137","v":0},"*",null,null,null,null,null,"Итого"]
["###"]
["Элемент","УменЗадолжЗайм",null,null,null,null,null,null,null,"Уменьшение задолженности по предоставленным займам (ссудам)"]
["Атрибут","КодАналит",{"$f":"Отчет!J138","v":"640"},null,null,null,null,null,null,"Код аналитики"]
["Атрибут","ЦелевСред",{"$f":"Отчет!K138","v":0},null,null,null,null,null,null,"Деятельность с целевыми средствами"]
["Атрибут","ОказУслуг",{"$f":"Отчет!L138","v":0},null,null,null,null,null,null,"Деятельность по оказанию услуг (работ)"]
["Атрибут","СрВремРасп",{"$f":"Отчет!M138","v":0},null,null,null,null,null,null,"Средства во временном распоряжении"]
["Атрибут","Итого",{"$f":"Отчет!N138","v":0},"*",null,null,null,null,null,"Итого"]
["###"]
["###"]
["Элемент","ЧистПостИнФА",null,"*",null,null,null,null,null,"Чистое поступление иных финансовых активов"]
["Элемент","ЧистПоступ",null,null,null,null,null,null,null,"Чистое поступление - всего"]
["Атрибут","КодАналит",{"$f":"Отчет!J139","v":0},null,null,null,null,null,null,"Код аналитики"]
["Атрибут","ЦелевСред",{"$f":"Отчет!K139","v":0},null,null,null,null,null,null,"Деятельность с целевыми средствами"]
["Атрибут","ОказУслуг",{"$f":"Отчет!L139","v":0},null,null,null,null,null,null,"Деятельность по оказанию услуг (работ)"]
["Атрибут","СрВремРасп",{"$f":"Отчет!M139","v":0},null,null,null,null,null,null,"Средства во временном распоряжении"]
["Атрибут","Итого",{"$f":"Отчет!N139","v":0},"*",null,null,null,null,null,"Итого"]
["###"]
["Элемент","УвелСтоим",null,null,null,null,null,null,null,"Увеличение стоимости "]
["Атрибут","КодАналит",{"$f":"Отчет!J141","v":"550"},null,null,null,null,null,null,"Код аналитики"]
["Атрибут","ЦелевСред",{"$f":"Отчет!K141","v":0},null,null,null,null,null,null,"Деятельность с целевыми средствами"]
["Атрибут","ОказУслуг",{"$f":"Отчет!L141","v":0},null,null,null,null,null,null,"Деятельность по оказанию услуг (работ)"]
["Атрибут","СрВремРасп",{"$f":"Отчет!M141","v":0},null,null,null,null,null,null,"Средства во временном распоряжении"]
["Атрибут","Итого",{"$f":"Отчет!N141","v":0},"*",null,null,null,null,null,"Итого"]
["###"]
["Элемент","УменСтоим",null,null,null,null,null,null,null,"Уменьшение стоимости"]
["Атрибут","КодАналит",{"$f":"Отчет!J142","v":"650"},null,null,null,null,null,null,"Код аналитики"]
["Атрибут","ЦелевСред",{"$f":"Отчет!K142","v":0},null,null,null,null,null,null,"Деятельность с целевыми средствами"]
["Атрибут","ОказУслуг",{"$f":"Отчет!L142","v":0},null,null,null,null,null,null,"Деятельность по оказанию услуг (работ)"]
["Атрибут","СрВремРасп",{"$f":"Отчет!M142","v":0},null,null,null,null,null,null,"Средства во временном распоряжении"]
["Атрибут","Итого",{"$f":"Отчет!N142","v":0},"*",null,null,null,null,null,"Итого"]
["###"]
["###"]
["Элемент","ЧистУвДебЗад",null,"*",null,null,null,null,null,"Чистое увеличение дебиторской задолженности"]
["Элемент","ЧистУвелЗадВс",null,null,null,null,null,null,null,"Чистое увеличение задолженности - всего"]
["Атрибут","КодАналит",{"$f":"Отчет!J143","v":0},null,null,null,null,null,null,"Код аналитики"]
["Атрибут","ЦелевСред",{"$f":"Отчет!K143","v":0},null,null,null,null,null,null,"Деятельность с целевыми средствами"]
["Атрибут","ОказУслуг",{"$f":"Отчет!L143","v":-314472.73},null,null,null,null,null,null,"Деятельность по оказанию услуг (работ)"]
["Атрибут","СрВремРасп",{"$f":"Отчет!M143","v":9797.81},null,null,null,null,null,null,"Средства во временном распоряжении"]
["Атрибут","Итого",{"$f":"Отчет!N143","v":-304674.92},"*",null,null,null,null,null,"Итого"]
["###"]
["Элемент","УвелЗадолж",null,null,null,null,null,null,null,"Увеличение задолженности"]
["Атрибут","КодАналит",{"$f":"Отчет!J145","v":"560"},null,null,null,null,null,null,"Код аналитики"]
["Атрибут","ЦелевСред",{"$f":"Отчет!K145","v":578747.06000000006},null,null,null,null,null,null,"Деятельность с целевыми средствами"]
["Атрибут","ОказУслуг",{"$f":"Отчет!L145","v":23887538.870000001},null,null,null,null,null,null,"Деятельность по оказанию услуг (работ)"]
["Атрибут","СрВремРасп",{"$f":"Отчет!M145","v":1531689.81},null,null,null,null,null,null,"Средства во временном распоряжении"]
["Атрибут","Итого",{"$f":"Отчет!N145","v":25997975.739999998},"*",null,null,null,null,null,"Итого"]
["###"]
["Элемент","УменЗадолж",null,null,null,null,null,null,null,"Уменьшение задолженности"]
["Атрибут","КодАналит",{"$f":"Отчет!J146","v":"660"},null,null,null,null,null,null,"Код аналитики"]
["Атрибут","ЦелевСред",{"$f":"Отчет!K146","v":578747.06000000006},null,null,null,null,null,null,"Деятельность с целевыми средствами"]
["Атрибут","ОказУслуг",{"$f":"Отчет!L146","v":24202011.600000001},null,null,null,null,null,null,"Деятельность по оказанию услуг (работ)"]
["Атрибут","СрВремРасп",{"$f":"Отчет!M146","v":1521892},null,null,null,null,null,null,"Средства во временном распоряжении"]
["Атрибут","Итого",{"$f":"Отчет!N146","v":26302650.66},"*",null,null,null,null,null,"Итого"]
["###"]
["###"]
["###"]
["Элемент","ОперОбяз",null,"*",null,null,null,null,null,"Операции с обязательствами"]
["Элемент","ОперОбязВс",null,"*",null,null,null,null,null,"Операции с обязательствами - всего"]
["Атрибут","КодАналит",{"$f":"Отчет!J152","v":0},null,null,null,null,null,null,"Код аналитики"]
["Атрибут","ЦелевСред",{"$f":"Отчет!K152","v":5431.07},null,null,null,null,null,null,"Деятельность с целевыми средствами"]
["Атрибут","ОказУслуг",{"$f":"Отчет!L152","v":847424.89},null,null,null,null,null,null,"Деятельность по оказанию услуг (работ)"]
["Атрибут","СрВремРасп",{"$f":"Отчет!M152","v":86202.36},null,null,null,null,null,null,"Средства во временном распоряжении"]
["Атрибут","Итого",{"$f":"Отчет!N152","v":939058.32},"*",null,null,null,null,null,"Итого"]
["###"]
["Элемент","ЧистУвЗадРез",null,"*",null,null,null,null,null,"Чистое увеличение задолженности по привлечениям перед резидентами"]
["Элемент","ЧистУвелЗадВс",null,null,null,null,null,null,null,"Чистое увеличение задолженности - всего"]
["Атрибут","КодАналит",{"$f":"Отчет!J153","v":0},null,null,null,null,null,null,"Код аналитики"]
["Атрибут","ЦелевСред",{"$f":"Отчет!K153","v":0},null,null,null,null,null,null,"Деятельность с целевыми средствами"]
["Атрибут","ОказУслуг",{"$f":"Отчет!L153","v":0},null,null,null,null,null,null,"Деятельность по оказанию услуг (работ)"]
["Атрибут","СрВремРасп",{"$f":"Отчет!M153","v":0},null,null,null,null,null,null,"Средства во временном распоряжении"]
["Атрибут","Итого",{"$f":"Отчет!N153","v":0},"*",null,null,null,null,null,"Итого"]
["###"]
["Элемент","УвелЗадолж",null,null,null,null,null,null,null,"Увеличение задолженности"]
["Атрибут","КодАналит",{"$f":"Отчет!J155","v":"710"},null,null,null,null,null,null,"Код аналитики"]
["Атрибут","ЦелевСред",{"$f":"Отчет!K155","v":0},null,null,null,null,null,null,"Деятельность с целевыми средствами"]
["Атрибут","ОказУслуг",{"$f":"Отчет!L155","v":0},null,null,null,null,null,null,"Деятельность по оказанию услуг (работ)"]
["Атрибут","СрВремРасп",{"$f":"Отчет!M155","v":0},null,null,null,null,null,null,"Средства во временном распоряжении"]
["Атрибут","Итого",{"$f":"Отчет!N155","v":0},"*",null,null,null,null,null,"Итого"]
["###"]
["Элемент","УменЗадолж",null,null,null,null,null,null,null,"Уменьшение задолженности"]
["Атрибут","КодАналит",{"$f":"Отчет!J156","v":"810"},null,null,null,null,null,null,"Код аналитики"]
["Атрибут","ЦелевСред",{"$f":"Отчет!K156","v":0},null,null,null,null,null,null,"Деятельность с целевыми средствами"]
["Атрибут","ОказУслуг",{"$f":"Отчет!L156","v":0},null,null,null,null,null,null,"Деятельность по оказанию услуг (работ)"]
["Атрибут","СрВремРасп",{"$f":"Отчет!M156","v":0},null,null,null,null,null,null,"Средства во временном распоряжении"]
["Атрибут","Итого",{"$f":"Отчет!N156","v":0},"*",null,null,null,null,null,"Итого"]
["###"]
["###"]
["Элемент","ЧистУвЗадНеРез",null,"*",null,null,null,null,null,"Чистое увеличение задолженности по привлечениям перед нерезидентами"]
["Элемент","ЧистУвелЗадВс",null,null,null,null,null,null,null,"Чистое увеличение задолженности - всего"]
["Атрибут","КодАналит",{"$f":"Отчет!J157","v":0},null,null,null,null,null,null,"Код аналитики"]
["Атрибут","ЦелевСред",{"$f":"Отчет!K157","v":0},null,null,null,null,null,null,"Деятельность с целевыми средствами"]
["Атрибут","ОказУслуг",{"$f":"Отчет!L157","v":0},null,null,null,null,null,null,"Деятельность по оказанию услуг (работ)"]
["Атрибут","СрВремРасп",{"$f":"Отчет!M157","v":0},null,null,null,null,null,null,"Средства во временном распоряжении"]
["Атрибут","Итого",{"$f":"Отчет!N157","v":0},"*",null,null,null,null,null,"Итого"]
["###"]
["Элемент","УвелЗадолж",null,null,null,null,null,null,null,"Увеличение задолженности"]
["Атрибут","КодАналит",{"$f":"Отчет!J159","v":"720"},null,null,null,null,null,null,"Код аналитики"]
["Атрибут","ЦелевСред",{"$f":"Отчет!K159","v":0},null,null,null,null,null,null,"Деятельность с целевыми средствами"]
["Атрибут","ОказУслуг",{"$f":"Отчет!L159","v":0},null,null,null,null,null,null,"Деятельность по оказанию услуг (работ)"]
["Атрибут","СрВремРасп",{"$f":"Отчет!M159","v":0},null,null,null,null,null,null,"Средства во временном распоряжении"]
["Атрибут","Итого",{"$f":"Отчет!N159","v":0},"*",null,null,null,null,null,"Итого"]
["###"]
["Элемент","УменЗадолж",null,null,null,null,null,null,null,"Уменьшение задолженности"]
["Атрибут","КодАналит",{"$f":"Отчет!J160","v":"820"},null,null,null,null,null,null,"Код аналитики"]
["Атрибут","ЦелевСред",{"$f":"Отчет!K160","v":0},null,null,null,null,null,null,"Деятельность с целевыми средствами"]
["Атрибут","ОказУслуг",{"$f":"Отчет!L160","v":0},null,null,null,null,null,null,"Деятельность по оказанию услуг (работ)"]
["Атрибут","СрВремРасп",{"$f":"Отчет!M160","v":0},null,null,null,null,null,null,"Средства во временном распоряжении"]
["Атрибут","Итого",{"$f":"Отчет!N160","v":0},"*",null,null,null,null,null,"Итого"]
["###"]
["###"]
["Элемент","ЧистУвПрочЗад",null,"*",null,null,null,null,null,"Чистое увеличение прочей кредиторской задолженности "]
["Элемент","ЧистУвелЗадВс",null,null,null,null,null,null,null,"Чистое увеличение задолженности - всего"]
["Атрибут","КодАналит",{"$f":"Отчет!J161","v":0},null,null,null,null,null,null,"Код аналитики"]
["Атрибут","ЦелевСред",{"$f":"Отчет!K161","v":5431.07},null,null,null,null,null,null,"Деятельность с целевыми средствами"]
["Атрибут","ОказУслуг",{"$f":"Отчет!L161","v":847424.89},null,null,null,null,null,null,"Деятельность по оказанию услуг (работ)"]
["Атрибут","СрВремРасп",{"$f":"Отчет!M161","v":86202.36},null,null,null,null,null,null,"Средства во временном распоряжении"]
["Атрибут","Итого",{"$f":"Отчет!N161","v":939058.32},"*",null,null,null,null,null,"Итого"]
["###"]
["Элемент","УвелЗадолж",null,null,null,null,null,null,null,"Увеличение задолженности"]
["Атрибут","КодАналит",{"$f":"Отчет!J163","v":"730"},null,null,null,null,null,null,"Код аналитики"]
["Атрибут","ЦелевСред",{"$f":"Отчет!K163","v":584178.13},null,null,null,null,null,null,"Деятельность с целевыми средствами"]
["Атрибут","ОказУслуг",{"$f":"Отчет!L163","v":41636557.079999998},null,null,null,null,null,null,"Деятельность по оказанию услуг (работ)"]
["Атрибут","СрВремРасп",{"$f":"Отчет!M163","v":1609554.04},null,null,null,null,null,null,"Средства во временном распоряжении"]
["Атрибут","Итого",{"$f":"Отчет!N163","v":43830289.25},"*",null,null,null,null,null,"Итого"]
["###"]
["Элемент","УменЗадолж",null,null,null,null,null,null,null,"Уменьшение задолженности"]
["Атрибут","КодАналит",{"$f":"Отчет!J164","v":"830"},null,null,null,null,null,null,"Код аналитики"]
["Атрибут","ЦелевСред",{"$f":"Отчет!K164","v":578747.06000000006},null,null,null,null,null,null,"Деятельность с целевыми средствами"]
["Атрибут","ОказУслуг",{"$f":"Отчет!L164","v":40789132.189999998},null,null,null,null,null,null,"Деятельность по оказанию услуг (работ)"]
["Атрибут","СрВремРасп",{"$f":"Отчет!M164","v":1523351.68},null,null,null,null,null,null,"Средства во временном распоряжении"]
["Атрибут","Итого",{"$f":"Отчет!N164","v":42891230.93},"*",null,null,null,null,null,"Итого"]
["Конец сценария"]